Workbook

Sheet Income Advantage
B1: =CELL("filename") -> C:\Users\jheale\Documents\Mortgage Broker Direct\Financial Illustration\[Financial-Illustration_IA_080816.xlsm]Income Advantage | I1: Annual | J1: 2
I2: Semi Annual
I3: Qtrly
I4: Mthly
L8: `
F9: Financial Illustration
F10: Income Advantage
F13: To begin, ensure you clicked "Enable Content" at the top of your screen or turned your Macros on. Click here to learn how to enable macros.
F15: Inputs | H15: Additional Tools
E16: Estimated Value of Home | F16: 500000 | J16: Click the button to calculate how much your client could receive
E17: HomEquity Bank Mortgage Amount | F17: 300000
E18: Initial Advance Amount | F18: 0 | J18: Click the button to view HomEquity Bank's current rates
E19: Interest Rate for Initial Advance (Lump Sum Account) | F19: 0.0499
E21: Planned Advance Amount (per Month) | F21: 1000 | J21: Click the button for current home appreciation statistics
E22: Number of Years to Show in Graph (max. 15) | F22: 15 | J22: (Please note this link will take you to an external site.)
E23: Interest Rate for Planned Advances (Planned Advance Account) | F23: 0.0499
E25: Home Appreciation Rate (per annum) | F25: 0.04
B31: Year | C31: Lump Sum Account Initial Advance Amount | D31: Lump Sum Account Interest Rate | E31: Planned Advance Account Annual Advance Amount | F31: Planned Advance Account Interest Rate | G31: Accrued Annual Interest | H31: Estimated End of Year Mortgage Balance | I31: Estimated Future Home Value | J31: Estimated Remaining Home Equity | T31: Int. Accum. Factor | W31: End of Year Planned Advance Principal | Y31: Beginning of Year Initial Advance Loan Balance | Z31: Beginning of Year Planned Advance Loan Balance | AB31: Yearly Initial Advance Interest | AC31: Yearly Planned Advance Interest | AD31: End of Year Initial Advance Loan Balance | AE31: End of Year Planned Advance Loan Balance | BN31: Total End of Year Principal | BO31: Beginning of Year Loan Balance
B32: 0 | C32: =+$F$18 -> 0 | D32: =F19 -> 0.0499 | E32: 0 | F32: =+$F$23 -> 0.0499 | G32: =+AB32+AC32 -> 0 | H32: =+C32 -> 0 | I32: =F16 -> 500000 | J32: =I32-$H32 -> 500000 | AB32: 0 | BN32: =+$C$32+W32 -> 0
B33: 1 | C33: 0 | D33: =D32 -> 0.0499 | E33: =+IF($C$32+$F$21*12*B33<=$F$17,$F$21*12,$F$17-($C$32+$F$21*12*B32)) -> 12000 | F33: 0.0499 | G33: 325.9434855 | H33: =+AE33+AD33 -> 12325.94349 | I33: =I32*(1+$F$25) -> 520000 | J33: 507674.0565 | T33: 2 | W33: =+IF(E33>0,E33+W32,W32) -> 12000 | Y33: =H32 -> 0 | Z33: =+AE32 -> 0 | AB33: =(((1+(D33/T33))^T33)*Y33)-Y33 -> 0 | AC33: =+'PA Interest Calculations'!G3 -> 325.9434855 | AD33: =+Y33+AB33 -> 0 | AE33: =+W33+AC33 -> 12325.94349 | BN33: 12000 | BO33: =+C32 -> 0
B34: 2 | C34: 0 | D34: 0.0499 | E34: 12000 | F34: 0.0499 | G34: 948.7194214 | H34: 25274.66291 | I34: 540800 | J34: 515525.3371 | T34: 2 | W34: 24000 | Y34: =+AD33 -> 0 | Z34: 12325.94349 | AB34: 0 | AC34: =+'PA Interest Calculations'!G4 -> 948.7194214 | AD34: 0 | AE34: =+Z34+AC34+W34-W33 -> 25274.66291 | BN34: 24000 | BO34: =+Y34+Z34 -> 12325.94349
B35: 3 | C35: 0 | D35: 0.0499 | E35: 12000 | F35: 0.0499 | G35: 1602.961498 | H35: 38877.6244 | I35: 562432 | J35: 523554.3756 | T35: 2 | W35: 36000 | Y35: 0 | Z35: 25274.66291 | AB35: 0 | AC35: =+'PA Interest Calculations'!G5 -> 1602.961498 | AD35: 0 | AE35: 38877.6244 | BN35: 36000 | BO35: 25274.66291
B36: 4 | C36: 0 | D36: 0.0499 | E36: 12000 | F36: 0.0499 | G36: 2290.25956 | H36: 53167.88396 | I36: 584929.28 | J36: 531761.396 | T36: 2 | W36: 48000 | Y36: 0 | Z36: 38877.6244 | AB36: 0 | AC36: =+'PA Interest Calculations'!G6 -> 2290.25956 | AD36: 0 | AE36: 53167.88396 | BN36: 48000 | BO36: 38877.6244
B37: 5 | C37: 0 | D37: 0.0499 | E37: 12000 | F37: 0.0499 | G37: 3012.283783 | H37: 68180.16775 | I37: 608326.4512 | J37: 540146.2835 | T37: 2 | W37: 60000 | Y37: 0 | Z37: 53167.88396 | AB37: 0 | AC37: =+'PA Interest Calculations'!G7 -> 3012.283783 | AD37: 0 | AE37: 68180.16775 | BN37: 60000 | BO37: 53167.88396
B38: 6 | C38: 0 | D38: 0.0499 | E38: 12000 | F38: 0.0499 | G38: 3770.788728 | H38: 83950.95648 | I38: 632659.5092 | J38: 548708.5528 | T38: 2 | W38: 72000 | Y38: 0 | Z38: 68180.16775 | AB38: 0 | AC38: =+'PA Interest Calculations'!G8 -> 3770.788728 | AD38: 0 | AE38: 83950.95648 | BN38: 72000 | BO38: 68180.16775
B39: 7 | C39: 0 | D39: 0.0499 | E39: 12000 | F39: 0.0499 | G39: 4567.617606 | H39: 100518.5741 | I39: 657965.8896 | J39: 557447.3155 | S39: 2 | T39: 2 | W39: 84000 | Y39: 0 | Z39: 83950.95648 | AB39: 0 | AC39: =+'PA Interest Calculations'!G9 -> 4567.617606 | AD39: 0 | AE39: 100518.5741 | BN39: 84000 | BO39: 83950.95648
B40: 8 | C40: 0 | D40: 0.0499 | E40: 12000 | F40: 0.0499 | G40: 5404.706756 | H40: 117923.2808 | I40: 684284.5252 | J40: 566361.2444 | S40: 2 | T40: 2 | W40: 96000 | Y40: 0 | Z40: 100518.5741 | AB40: 0 | AC40: =+'PA Interest Calculations'!G10 -> 5404.706756 | AD40: 0 | AE40: 117923.2808 | BN40: 96000 | BO40: 100518.5741
B41: 9 | C41: 0 | D41: 0.0499 | E41: 12000 | F41: 0.0499 | G41: 6284.090355 | H41: 136207.3712 | I41: 711655.9062 | J41: 575448.535 | S41: 2 | T41: 2 | W41: 108000 | Y41: 0 | Z41: 117923.2808 | AB41: 0 | AC41: =+'PA Interest Calculations'!G11 -> 6284.090355 | AD41: 0 | AE41: 136207.3712 | BN41: 108000 | BO41: 117923.2808
B42: 10 | C42: 0 | D42: 0.0499 | E42: 12000 | F42: 0.0499 | G42: 7207.905355 | H42: 155415.2765 | I42: 740122.1425 | J42: 584706.8659 | S42: 2 | T42: 2 | W42: 120000 | Y42: 0 | Z42: 136207.3712 | AB42: 0 | AC42: =+'PA Interest Calculations'!G12 -> 7207.905355 | AD42: 0 | AE42: 155415.2765 | BN42: 120000 | BO42: 136207.3712
B43: 11 | C43: 0 | D43: 0.0499 | E43: 12000 | F43: 0.0499 | G43: 8178.39668 | H43: 175593.6732 | I43: 769727.0282 | J43: 594133.3549 | S43: 2 | T43: 2 | W43: 132000 | Y43: 0 | Z43: 155415.2765 | AB43: 0 | AC43: =+'PA Interest Calculations'!G13 -> 8178.39668 | AD43: 0 | AE43: 175593.6732 | BN43: 132000 | BO43: 155415.2765
B44: 12 | C44: 0 | D44: 0.0499 | E44: 12000 | F44: 0.0499 | G44: 9197.922682 | H44: 196791.5959 | I44: 800516.1093 | J44: 603724.5134 | T44: 2 | W44: 144000 | Y44: 0 | Z44: 175593.6732 | AB44: 0 | AC44: =+'PA Interest Calculations'!G14 -> 9197.922682 | AD44: 0 | AE44: 196791.5959 | BN44: 144000 | BO44: 175593.6732
B45: 13 | C45: 0 | D45: 0.0499 | E45: 12000 | F45: 0.0499 | G45: 10268.96087 | H45: 219060.5568 | I45: 832536.7537 | J45: 613476.1969 | T45: 2 | W45: 156000 | Y45: 0 | Z45: 196791.5959 | AB45: 0 | AC45: =+'PA Interest Calculations'!G15 -> 10268.96087 | AD45: 0 | AE45: 219060.5568 | BN45: 156000 | BO45: 196791.5959
B46: 14 | C46: 0 | D46: 0.0499 | E46: 12000 | F46: 0.0499 | G46: 11394.11392 | H46: 242454.6707 | I46: 865838.2238 | J46: 623383.5531 | T46: 2 | W46: 168000 | Y46: 0 | Z46: 219060.5568 | AB46: 0 | AC46: =+'PA Interest Calculations'!G16 -> 11394.11392 | AD46: 0 | AE46: 242454.6707 | BN46: 168000 | BO46: 219060.5568
B47: 15 | C47: 0 | D47: 0.0499 | E47: 12000 | F47: 0.0499 | G47: 12576.11603 | H47: 267030.7867 | I47: 900471.7528 | J47: 633440.966 | T47: 2 | W47: 180000 | Y47: 0 | Z47: 242454.6707 | AB47: 0 | AC47: =+'PA Interest Calculations'!G17 -> 12576.11603 | AD47: 0 | AE47: 267030.7867 | BN47: 180000 | BO47: 242454.6707
B49: Year | C49: 0 | D49: 1 | E49: 2 | F49: 3 | G49: 4 | H49: 5 | I49: 6 | J49: 7 | K49: 8 | L49: 9 | M49: 10 | N49: 11 | O49: 12 | P49: 13 | Q49: 14 | R49: 15
B50: Initial Advance | C50: =+IF(C49<=$F$22,BN32,0) -> 0 | D50: =+IF(D49<=$F$22,BN33,0) -> 12000 | E50: =+IF(E49<=$F$22,BN34,0) -> 24000 | F50: =+IF(F49<=$F$22,BN35,0) -> 36000 | G50: =+IF(G49<=$F$22,BN36,0) -> 48000 | H50: =+IF(H49<=$F$22,BN37,0) -> 60000 | I50: =+IF(I49<=$F$22,BN38,0) -> 72000 | J50: =+IF(J49<=$F$22,BN39,0) -> 84000 | K50: =+IF(K49<=$F$22,BN40,0) -> 96000 | L50: =+IF(L49<=$F$22,BN41,0) -> 108000 | M50: =+IF(M49<=$F$22,BN42,0) -> 120000 | N50: =+IF(N49<=$F$22,BN43,0) -> 132000 | O50: =+IF(O49<=$F$22,BN44,0) -> 144000 | P50: =+IF(P49<=$F$22,BN45,0) -> 156000 | Q50: =+IF(Q49<=$F$22,BN46,0) -> 168000 | R50: =+IF(R49<=$F$22,BN47,0) -> 180000
B51: Home Value | C51: =+IF(C49<=$F$22,I32,0) -> 500000 | D51: =+IF(D49<=$F$22,I33,0) -> 520000 | E51: =+IF(E49<=$F$22,I34,0) -> 540800 | F51: =+IF(F49<=$F$22,I35,0) -> 562432 | G51: =+IF(G49<=$F$22,I36,0) -> 584929.28 | H51: =+IF(H49<=$F$22,I37,0) -> 608326.4512 | I51: =+IF(I49<=$F$22,I38,0) -> 632659.5092 | J51: =+IF(J49<=$F$22,I39,0) -> 657965.8896 | K51: =+IF(K49<=$F$22,I40,0) -> 684284.5252 | L51: =+IF(L49<=$F$22,I41,0) -> 711655.9062 | M51: =+IF(M49<=$F$22,I42,0) -> 740122.1425 | N51: =+IF(N49<=$F$22,I43,0) -> 769727.0282 | O51: =+IF(O49<=$F$22,I44,0) -> 800516.1093 | P51: =+IF(P49<=$F$22,I45,0) -> 832536.7537 | Q51: =+IF(Q49<=$F$22,I46,0) -> 865838.2238 | R51: =+IF(R49<=$F$22,I47,0) -> 900471.7528
B52: Loan Balance | C52: =+IF(C49<=$F$22,H32,0) -> 0 | D52: =+IF(D49<=$F$22,H33,0) -> 12325.94349 | E52: =+IF(E49<=$F$22,H34,0) -> 25274.66291 | F52: =+IF(F49<=$F$22,H35,0) -> 38877.6244 | G52: =+IF(G49<=$F$22,H36,0) -> 53167.88396 | H52: =+IF(H49<=$F$22,H37,0) -> 68180.16775 | I52: =+IF(I49<=$F$22,H38,0) -> 83950.95648 | J52: =+IF(J49<=$F$22,H39,0) -> 100518.5741 | K52: =+IF(K49<=$F$22,H40,0) -> 117923.2808 | L52: =+IF(L49<=$F$22,H41,0) -> 136207.3712 | M52: =+IF(M49<=$F$22,H42,0) -> 155415.2765 | N52: =+IF(N49<=$F$22,H43,0) -> 175593.6732 | O52: =+IF(O49<=$F$22,H44,0) -> 196791.5959 | P52: =+IF(P49<=$F$22,H45,0) -> 219060.5568 | Q52: =+IF(Q49<=$F$22,H46,0) -> 242454.6707 | R52: =+IF(R49<=$F$22,H47,0) -> 267030.7867
B53: Home Equity | C53: =+C51-C52 -> 500000 | D53: =+D51-D52 -> 507674.0565 | E53: 515525.3371 | F53: 523554.3756 | G53: 531761.396 | H53: 540146.2835 | I53: 548708.5528 | J53: 557447.3155 | K53: 566361.2444 | L53: 575448.535 | M53: 584706.8659 | N53: 594133.3549 | O53: 603724.5134 | P53: 613476.1969 | Q53: 623383.5531 | R53: =+R51-R52 -> 633440.966
B54: Interest | C54: =+IF(XStart<=Years,AB32,0) -> 0 | D54: =+D52-D50 -> 325.9434855 | E54: =+E52-E50 -> 1274.662907 | F54: 2877.624404 | G54: 5167.883965 | H54: 8180.167748 | I54: 11950.95648 | J54: 16518.57408 | K54: 21923.28084 | L54: 28207.37119 | M54: 35415.27655 | N54: 43593.67323 | O54: 52791.59591 | P54: 63060.55678 | Q54: 74454.6707 | R54: 87030.78672
B84: *Calculations and chart are for illustration purposes only. External factors not accounted for in the calculations may affect future projections and are based on certain assumptions. HomEquity Bank may change or update calculations without notification.This information is not intended as specific financial, accounting, legal, or tax advice for any individual and should not be relied on as such.

Sheet AF Value Calculator (hidden)
A1: =CELL("filename") -> C:\Users\jheale\Documents\Mortgage Broker Direct\Financial Illustration\[Financial-Illustration_IA_080816.xlsm]Income Advantage | K1: Annual | L1: 2
K2: Semi Annual
K3: Qtrly
K4: Mthly
A6: =CELL("filename") -> C:\Users\jheale\Documents\Mortgage Broker Direct\Financial Illustration\[Financial-Illustration_IA_080816.xlsm]Income Advantage
A7: Estimated Fair Market Value of Home | B7: 350000
A8: CHIP Maximum | B8: 137000
A9: HIP Portion | B9: =B8-B10 -> 124904
A10: Additional Finance Portion | B10: 12096
A11: # of AF Payments | B11: 98
A12: Monthly Payments | B12: 171
A13: Interest Rate | B13: 0.0815
A14: Reset Date
A15: Interest Accumulation
K17: 0.02 | M17: 0.04 | O17: 0.06
A18: AF Calculator | K18: Home | L18: Remaining | M18: Home | N18: Remaining | O18: Home | P18: Remaining
A19: Year | B19: Jan 1 Cost | C19: Interest Rate | D19: Int. Accum. Factor | E19: Payback of AF | F19: Yearly Interest | G19: Accumulated Cost | H19: CHIP App | I19: Var | J19: % Var | K19: Value | L19: Home Equity | M19: Value | N19: Home Equity | O19: Value | P19: Home Equity
A20: 0 | C20: =B13 -> 0.0815 | E20: 0 | F20: 0 | G20: =B8 -> 137000 | H20: 137000 | I20: =H20-G20 -> 0 | K20: =B7 -> 350000 | L20: =K20-$G20 -> 213000 | M20: =B7 -> 350000 | N20: =M20-$G20 -> 213000 | O20: =B7 -> 350000 | P20: =O20-$G20 -> 213000
A21: 1 | B21: =G20 -> 137000 | C21: =C20 -> 0.0815 | D21: =IF($L$1=1,1,IF($L$1=2,2,IF($L$1=3,4,IF($L$1=4,12,0)))) -> 2 | E21: =N67 -> 1881 | F21: =(((1+(C21/D21))^D21)*(B21-E21))-G20 -> 9355.572044 | G21: =G20+F21 -> 146355.572 | H21: 146387 | I21: =H21-G21 -> 31.42795556 | J21: =I21/H21 -> 0.0002146908917 | K21: =K20*(1+$K$17) -> 357000 | L21: 210644.428 | M21: =M20*(1+$M$17) -> 364000 | N21: 217644.428 | O21: =O20*(1+$O$17) -> 371000 | P21: 224644.428
A22: 2 | B22: 146355.572 | C22: 0.0865 | D22: 2 | E22: 2052 | F22: 10700.18783 | G22: 157055.7599 | H22: 157162 | I22: 106.2401232 | J22: =I22/H22 -> 0.0006759911635 | K22: 364140 | L22: 207084.2401 | M22: 378560 | N22: 221504.2401 | O22: 393260 | P22: 236204.2401
A23: 3 | B23: 157055.7599 | C23: 0.0865 | D23: 2 | E23: 2052 | F23: 11645.76945 | G23: 168701.5293 | H23: 168893 | I23: 191.4706733 | J23: 0.001133680338 | K23: 371422.8 | L23: 202721.2707 | M23: 393702.4 | N23: 225000.8707 | O23: 416855.6 | P23: 248154.0707
A24: 4 | B24: 168701.5293 | C24: 0.084 | D24: 2 | E24: 2052 | F24: 12240.53023 | G24: 180942.0596 | H24: 181246 | I24: 303.9404401 | J24: 0.001676949782 | K24: 378851.256 | L24: 197909.1964 | M24: 409450.496 | N24: 228508.4364 | O24: 441866.936 | P24: 260924.8764
A25: 5 | B25: 180942.0596 | C25: 0.0815 | D25: 2 | E25: 2052 | F25: 12824.59798 | G25: 193766.6575 | H25: 194205 | I25: 438.3424615 | J25: 0.002257112131 | K25: 386428.2811 | L25: 192661.6236 | M25: 425828.5158 | N25: 232061.8583 | O25: 468378.9522 | P25: 274612.2946
A26: 6 | B26: 193766.6575 | C26: 0.079 | D26: 2 | E26: 2052 | F26: 13392.58074 | G26: 207159.2383 | H26: 207748 | I26: 588.7617215 | J26: 0.002834018722 | K26: 394156.8467 | L26: 186997.6085 | M26: 442861.6565 | N26: 235702.4182 | O26: 496481.6893 | P26: 289322.451
A27: 7 | B27: 207159.2383 | C27: 0.0765 | D27: 2 | E27: 2052 | F27: 13938.78844 | G27: 221098.0267 | H27: 221845 | I27: 746.9732844 | J27: 0.003367095424 | K27: 402039.9837 | L27: 180941.957 | M27: 460576.1227 | N27: 239478.096 | O27: 526270.5906 | P27: 305172.5639
A28: 8 | B28: 221098.0267 | C28: 0.074 | D28: 2 | E28: 2052 | F28: 14457.27999 | G28: 235555.3067 | H28: 236458 | I28: 902.6932969 | J28: 0.003817562937 | K28: 410080.7834 | L28: 174525.4766 | M28: 478999.1676 | N28: 243443.8609 | O28: 557846.8261 | P28: 322291.5194
A29: 9 | B29: 235555.3067 | C29: 0.0725 | D29: 2 | E29: 513 | F29: 16836.42752 | G29: 252391.7342 | H29: 253507 | I29: 1115.26578 | J29: 0.004399349051 | K29: 418282.399 | L29: 165890.6648 | M29: 498159.1343 | N29: 245767.4001 | O29: 591317.6357 | P29: 338925.9014
A30: 10 | B30: 252391.7342 | C30: 0.0725 | D30: 2 | F30: =(((1+(C30/D30))^D30)*B30)-G29 -> 18630.05924 | G30: 271021.7935 | H30: 272220 | I30: 1198.206536 | J30: 0.00440161096 | K30: 426648.047 | L30: 155626.2535 | M30: 518085.4997 | N30: 247063.7063 | O30: 626796.6938 | P30: 355774.9003
A31: 11 | B31: 271021.7935 | C31: 0.0725 | D31: 2 | F31: 20005.2196 | G31: 291027.0131 | I31: =H31-G31 -> -291027.0131 | K31: 435181.0079 | L31: 144153.9949 | M31: 538808.9197 | N31: 247781.9066 | O31: 664404.4954 | P31: 373377.4824
A32: 12 | B32: 291027.0131 | C32: 0.0725 | D32: 2 | F32: 21481.88613 | G32: 312508.8992 | I32: -312508.8992 | K32: 443884.6281 | L32: 131375.7289 | M32: 560361.2765 | N32: 247852.3773 | O32: 704268.7651 | P32: 391759.8659
A33: 13 | B33: 312508.8992 | C33: 0.0725 | D33: 2 | F33: 23067.55142 | G33: 335576.4506 | I33: -335576.4506 | K33: 452762.3207 | L33: 117185.87 | M33: 582775.7276 | N33: 247199.2769 | O33: 746524.8911 | P33: 410948.4404
A34: 14 | B34: 335576.4506 | C34: 0.0725 | D34: 2 | F34: 24770.2611 | G34: 360346.7117 | I34: -360346.7117 | K34: 461817.5671 | L34: 101470.8554 | M34: 606086.7567 | N34: 245740.0449 | O34: 791316.3845 | P34: 430969.6728
A35: 15 | B35: 360346.7117 | C35: 0.0725 | D35: 2 | F35: 26598.6547 | G35: 386945.3664 | H35: 388656 | I35: 1710.633586 | J35: 0.004401407892 | K35: 471053.9184 | L35: 84108.552 | M35: 630330.2269 | N35: 243384.8605 | O35: 838795.3676 | P35: 451850.0012
A38: AF Portion
A39: Year | B39: Jan 1 Cost | C39: Pay Periods | D39: Yearly Payments | M39: Interest Rate | N39: Int. Accum. Factor | O39: Yearly Interest | P39: Accumulated Cost
A40: 0 | M40: =C20 -> 0.0815 | O40: 0 | P40: =B10 -> 12096
A41: 1 | B41: =P40 -> 12096 | C41: 11 | D41: =IF(VLOOKUP(A41,$A$66:$N$81,14,FALSE)>0,VLOOKUP(A41,$A$66:$N$81,14,FALSE),0) -> 1881 | F41: =B41-D41 -> 10215 | G41: =F41+G21 -> 156570.572 | K41: =146387-G41 -> -10183.57204 | M41: 0.0815 | N41: =IF($L$1=1,1,IF($L$1=2,2,IF($L$1=3,4,IF($L$1=4,12,0)))) -> 2 | O41: =P40-(((1+(M41/N41))^N41)*(B41-D41)) -> 1031.514854 | P41: =P40-O41 -> 11064.48515
A42: 2 | B42: =F41 -> 10215 | C42: 12 | D42: 2052 | F42: 8163 | G42: 165218.7599 | K42: =157162-G42 -> -8056.759877 | M42: 0.0865 | N42: 2 | O42: 2180.116244 | P42: 8884.368902
A43: 3 | B43: 8163 | C43: 12 | D43: 2052 | F43: 6111 | G43: 174812.5293 | K43: =168893-G43 -> -5919.529327 | M43: 0.0865 | N43: 2 | O43: 2233.336394 | P43: 6651.032507
A44: 4 | B44: 6111 | C44: 12 | D44: 2052 | F44: 4059 | G44: 185001.0596 | K44: =181246-G44 -> -3755.05956 | M44: 0.084 | N44: 2 | O44: 2243.916431 | P44: 4407.116076
A45: 5 | B45: 4059 | C45: 12 | D45: 2052 | F45: 2007 | G45: 195773.6575 | K45: =194205-G45 -> -1568.657539 | M45: 0.0815 | N45: 2 | O45: 2233.212827 | P45: 2173.903249
A46: 6 | B46: 2007 | C46: 12 | D46: 2052 | F46: -45 | G46: 207114.2383 | K46: =207748-G46 -> 633.7617215 | M46: 0.079 | N46: 2 | O46: 2222.52846 | P46: -48.62521125
A47: 7 | B47: -45 | C47: 12 | D47: 2052 | F47: -2097 | G47: 219001.0267 | K47: =221845-G47 -> 2843.973284 | M47: 0.0765 | N47: 2 | O47: 2211.863331 | P47: -2260.488542
A48: 8 | B48: -2097 | C48: 12 | D48: 2052 | F48: -4149 | G48: 231406.3067 | K48: =236458-G48 -> 5051.693297 | M48: 0.074 | N48: 2 | O48: 2201.217439 | P48: -4461.705981
A49: 9 | B49: -4149 | C49: 12 | D49: 513 | F49: -4662 | G49: 247729.7342 | K49: =253507-G49 -> 5777.26578 | M49: 0.0725 | N49: 2 | O49: 544.4151784 | P49: -5006.121159
A50: 10 | B50: 0 | C50: 12 | D50: 0 | M50: 0.0725 | N50: 2 | O50: 0 | P50: 0
A51: 11 | B51: 0 | C51: 12 | D51: 0 | M51: 0.0725 | N51: 2 | O51: =P50-(((1+(M51/N51))^N51)*(B51-D51)) -> 0 | P51: =P50-O51 -> 0
A52: 12 | B52: 0 | C52: 12 | D52: 0 | M52: 0.0725 | N52: 2 | O52: =P51-(((1+(M52/N52))^N52)*(B52-D52)) -> 0 | P52: =P51-O52 -> 0
A53: 13 | B53: 0 | C53: 12 | D53: 0 | M53: 0.0725 | N53: 2 | O53: =P52-(((1+(M53/N53))^N53)*(B53-D53)) -> 0 | P53: =P52-O53 -> 0
A54: 14 | B54: 0 | C54: 12 | D54: 0 | M54: 0.0725 | N54: 2 | O54: =P53-(((1+(M54/N54))^N54)*(B54-D54)) -> 0 | P54: =P53-O54 -> 0
A55: 15 | B55: 0 | C55: 12 | D55: 0 | M55: 0.0725 | N55: 2 | O55: =P54-(((1+(M55/N55))^N55)*(B55-D55)) -> 0 | P55: =P54-O55 -> 0
A64: Payments | B64: Month
A65: Year | B65: 1 | C65: 2 | D65: 3 | E65: 4 | F65: 5 | G65: 6 | H65: 7 | I65: 8 | J65: 9 | K65: 10 | L65: 11 | M65: 12
A66: 0
A67: 1 | C67: =$B$12 -> 171 | D67: =$B$12 -> 171 | E67: 171 | F67: 171 | G67: 171 | H67: 171 | I67: 171 | J67: 171 | K67: 171 | L67: 171 | M67: 171 | N67: =SUM(B67:M67) -> 1881
A68: 2 | B68: =$B$12 -> 171 | C68: =$B$12 -> 171 | D68: 171 | E68: 171 | F68: 171 | G68: 171 | H68: 171 | I68: 171 | J68: 171 | K68: 171 | L68: 171 | M68: 171 | N68: 2052
A69: 3 | B69: =$B$12 -> 171 | C69: 171 | D69: 171 | E69: 171 | F69: 171 | G69: 171 | H69: 171 | I69: 171 | J69: 171 | K69: 171 | L69: 171 | M69: 171 | N69: 2052
A70: 4 | B70: 171 | C70: 171 | D70: 171 | E70: 171 | F70: 171 | G70: 171 | H70: 171 | I70: 171 | J70: 171 | K70: 171 | L70: 171 | M70: 171 | N70: 2052
A71: 5 | B71: 171 | C71: 171 | D71: 171 | E71: 171 | F71: 171 | G71: 171 | H71: 171 | I71: 171 | J71: 171 | K71: 171 | L71: 171 | M71: 171 | N71: 2052
A72: 6 | B72: 171 | C72: 171 | D72: 171 | E72: 171 | F72: 171 | G72: 171 | H72: 171 | I72: 171 | J72: 171 | K72: 171 | L72: 171 | M72: 171 | N72: 2052
A73: 7 | B73: 171 | C73: 171 | D73: 171 | E73: 171 | F73: 171 | G73: 171 | H73: 171 | I73: 171 | J73: 171 | K73: 171 | L73: 171 | M73: 171 | N73: 2052
A74: 8 | B74: 171 | C74: 171 | D74: 171 | E74: 171 | F74: 171 | G74: 171 | H74: 171 | I74: 171 | J74: 171 | K74: 171 | L74: 171 | M74: 171 | N74: 2052
A75: 9 | B75: 171 | C75: 171 | D75: 171 | N75: 513
A76: 10 | N76: 0
A77: 11 | N77: 0
A78: 12 | N78: 0
A79: 13 | N79: 0
A80: 14 | N80: 0
A81: 15 | N81: 0
N82: =SUM(N67:N81) -> 16758

Sheet HIP Value Calculator & AF (hidden)
A1: =CELL("filename") -> C:\Users\jheale\Documents\Mortgage Broker Direct\Financial Illustration\[Financial-Illustration_IA_080816.xlsm]Income Advantage | H1: Annual | I1: 2
H2: Semi Annual
H3: Qtrly
H4: Mthly
A6: =CELL("filename") -> C:\Users\jheale\Documents\Mortgage Broker Direct\Financial Illustration\[Financial-Illustration_IA_080816.xlsm]Income Advantage
A7: Estimated Fair Market Value of Home | C7: 350000
A8: CHIP Maximum | C8: 124904
A9: Interest Rate | C9: 0.0815
A10: Reset Date
A11: Payment Periods | C11: 98
A12: Interest Accumulation
H14: 0.06 | J14: 0.04 | L14: 0.02
A15: HIP Value | H15: Home | I15: Remaining | J15: Home | K15: Remaining | L15: Home | M15: Remaining
A16: Year | C16: Jan 1 Cost | D16: Interest Rate | E16: Int. Accum. Factor | F16: Yearly Interest | G16: Accumulated Cost | H16: Value | I16: Home Equity | J16: Value | K16: Home Equity | L16: Value | M16: Home Equity
A17: 0 | D17: =C9 -> 0.0815 | F17: 0 | G17: =C8 -> 124904 | H17: =C7 -> 350000 | I17: =H17-$G17 -> 225096 | J17: =C7 -> 350000 | K17: =J17-$G17 -> 225096 | L17: =C7 -> 350000 | M17: =L17-$G17 -> 225096
A18: 1 | C18: =G17 -> 124904 | D18: =D17 -> 0.0815 | E18: =IF($I$1=1,1,IF($I$1=2,2,IF($I$1=3,4,IF($I$1=4,12,0)))) -> 2 | F18: =(((1+(D18/E18))^E18)*C18)-G17 -> 10387.0869 | G18: =G17+F18 -> 135291.0869 | H18: =H17*(1+$H$14) -> 371000 | I18: =H18-$G18 -> 235708.9131 | J18: =J17*(1+$J$14) -> 364000 | K18: 228708.9131 | L18: =L17*(1+$L$14) -> 357000 | M18: 221708.9131
A19: 2 | C19: 135291.0869 | D19: 0.0865 | E19: 2 | F19: 11955.74945 | G19: =G18+F19 -> 147246.8363 | H19: 393260 | I19: 246013.1637 | J19: 378560 | K19: 231313.1637 | L19: 364140 | M19: 216893.1637
A20: 3 | C20: 147246.8363 | D20: 0.0865 | E20: 2 | F20: 13012.28575 | G20: 160259.1221 | H20: 416855.6 | I20: 256596.4779 | J20: 393702.4 | K20: 233443.2779 | L20: =L19*(1+$L$14) -> 371422.8 | M20: 211163.6779
A21: 4 | C21: 160259.1221 | D21: 0.084 | E21: 2 | F21: =(((1+(D21/E21))^E21)*C21)-G20 -> 13744.46335 | G21: 174003.5855 | H21: 441866.936 | I21: 267863.3505 | J21: 409450.496 | K21: 235446.9105 | L21: 378851.256 | M21: 204847.6705
A22: 5 | C22: 174003.5855 | D22: 0.0815 | E22: 2 | F22: 14470.23604 | G22: 188473.8215 | H22: 468378.9522 | I22: 279905.1307 | J22: 425828.5158 | K22: 237354.6943 | L22: 386428.2811 | M22: 197954.4596
A23: 6 | C23: 188473.8215 | D23: 0.079 | E23: 2 | F23: 15183.49818 | G23: 203657.3197 | H23: 496481.6893 | I23: 292824.3696 | J23: 442861.6565 | K23: 239204.3368 | L23: 394156.8467 | M23: 190499.5271
A24: 7 | C24: 203657.3197 | D24: 0.0765 | E24: 2 | F24: 15877.74834 | G24: 219535.068 | H24: 526270.5906 | I24: 306735.5226 | J24: 460576.1227 | K24: 241041.0547 | L24: 402039.9837 | M24: 182504.9157
A25: 8 | C25: 219535.068 | D25: 0.074 | E25: 2 | F25: 16546.13854 | G25: 236081.2066 | H25: 557846.8261 | I25: 321765.6195 | J25: 478999.1676 | K25: 242917.9611 | L25: 410080.7834 | M25: 173999.5768
A26: 9 | C26: 236081.2066 | D26: 0.0725 | E26: 2 | F26: 17426.11294 | G26: 253507.3195 | H26: 591317.6357 | I26: 337810.3162 | J26: 498159.1343 | K26: 244651.8149 | L26: 418282.399 | M26: 164775.0795
A27: 10 | C27: 253507.3195 | D27: 0.0725 | E27: 2 | F27: 18712.40513 | G27: 272219.7246 | H27: 626796.6938 | I27: 354576.9692 | J27: 518085.4997 | K27: 245865.7751 | L27: 426648.047 | M27: 154428.3224
A28: 11 | C28: 272219.7246 | D28: 0.0725 | E28: 2 | F28: 20093.64377 | G28: 292313.3684 | H28: 664404.4954 | I28: 372091.127 | J28: 538808.9197 | K28: 246495.5513 | L28: 435181.0079 | M28: 142867.6396
A29: 12 | C29: 292313.3684 | D29: 0.0725 | E29: 2 | F29: 21576.83724 | G29: 313890.2056 | H29: 704268.7651 | I29: 390378.5595 | J29: 560361.2765 | K29: 246471.0709 | L29: 443884.6281 | M29: 129994.4225
A30: 13 | C30: 313890.2056 | D30: 0.0725 | E30: 2 | F30: 23169.51126 | G30: 337059.7169 | H30: 746524.8911 | I30: 409465.1742 | J30: 582775.7276 | K30: 245716.0107 | L30: 452762.3207 | M30: 115702.6038
A31: 14 | C31: 337059.7169 | D31: 0.0725 | E31: 2 | F31: 24879.74701 | G31: 361939.4639 | H31: 791316.3845 | I31: 429376.9206 | J31: 606086.7567 | K31: 244147.2928 | L31: 461817.5671 | M31: 99878.10318
A32: 15 | C32: 361939.4639 | D32: 0.0725 | E32: 2 | F32: 26716.22221 | G32: 388655.6861 | H32: 838795.3676 | I32: 450139.6815 | J32: 630330.2269 | K32: 241674.5408 | L32: 471053.9184 | M32: =L32-$G32 -> 82398.23231
H34: 0.06 | J34: 0.04 | L34: 0.02
A35: CHIP Value | H35: Home | I35: Remaining | J35: Home | K35: Remaining | L35: Home | M35: Remaining
A36: Year | C36: Jan 1 Cost | D36: Interest Rate | E36: Int. Accum. Factor | F36: Yearly Interest | G36: Accumulated Cost | H36: Value | I36: Home Equity | J36: Value | K36: Home Equity | L36: Value | M36: Home Equity
A37: 0 | D37: =D17 -> 0.0815 | G37: 137000 | H37: =H17 -> 350000 | I37: =H37-$G37 -> 213000 | J37: =J17 -> 350000 | K37: =J37-$G37 -> 213000 | L37: =L17 -> 350000 | M37: =L37-$G37 -> 213000
A38: 1 | C38: =G37 -> 137000 | D38: =D18 -> 0.0815 | E38: =IF($I$1=1,1,IF($I$1=2,2,IF($I$1=3,4,IF($I$1=4,12,0)))) -> 2 | G38: 146387 | H38: =H37*(1+$H$14) -> 371000 | I38: =H38-$G38 -> 224613 | J38: =J37*(1+$J$14) -> 364000 | K38: =J38-$G38 -> 217613 | L38: =L37*(1+$L$14) -> 357000 | M38: 210613
A39: 2 | C39: =G38 -> 146387 | D39: 0.0865 | E39: 2 | G39: 157162 | H39: 393260 | I39: =H39-$G39 -> 236098 | J39: 378560 | K39: =J39-$G39 -> 221398 | L39: 364140 | M39: 206978
A40: 3 | C40: 157162 | D40: 0.0865 | E40: 2 | G40: 168893 | H40: 416855.6 | I40: =H40-$G40 -> 247962.6 | J40: 393702.4 | K40: 224809.4 | L40: 371422.8 | M40: 202529.8
A41: 4 | C41: 168893 | D41: 0.084 | E41: 2 | G41: 181246 | H41: 441866.936 | I41: 260620.936 | J41: 409450.496 | K41: 228204.496 | L41: 378851.256 | M41: 197605.256
A42: 5 | C42: 181246 | D42: 0.0815 | E42: 2 | G42: 194205 | H42: 468378.9522 | I42: =H42-$G42 -> 274173.9522 | J42: 425828.5158 | K42: =J42-$G42 -> 231623.5158 | L42: 386428.2811 | M42: 192223.2811
A43: 6 | C43: 194205 | D43: 0.079 | E43: 2 | G43: 207748 | H43: 496481.6893 | I43: 288733.6893 | J43: 442861.6565 | K43: 235113.6565 | L43: 394156.8467 | M43: 186408.8467
A44: 7 | C44: 207748 | D44: 0.0765 | E44: 2 | G44: 221845 | H44: 526270.5906 | I44: 304425.5906 | J44: 460576.1227 | K44: 238731.1227 | L44: 402039.9837 | M44: 180194.9837
A45: 8 | C45: 221845 | D45: 0.074 | E45: 2 | G45: 236458 | H45: 557846.8261 | I45: 321388.8261 | J45: 478999.1676 | K45: 242541.1676 | L45: 410080.7834 | M45: 173622.7834
A46: 9 | C46: 236458 | D46: 0.0725 | E46: 2 | G46: 253507 | H46: 591317.6357 | I46: 337810.6357 | J46: 498159.1343 | K46: 244652.1343 | L46: 418282.399 | M46: 164775.399
A47: 10 | C47: 253507 | D47: 0.0725 | E47: 2 | G47: 272220 | H47: 626796.6938 | I47: 354576.6938 | J47: 518085.4997 | K47: 245865.4997 | L47: 426648.047 | M47: 154428.047
A48: 11 | C48: 272220 | D48: 0.0725 | E48: 2 | F48: =G48-C48 -> -272220 | H48: 664404.4954 | I48: 664404.4954 | J48: 538808.9197 | K48: 538808.9197 | L48: 435181.0079 | M48: 435181.0079
A49: 12 | C49: 0 | D49: 0.0725 | E49: 2 | F49: =G49-C49 -> 0 | H49: 704268.7651 | I49: 704268.7651 | J49: 560361.2765 | K49: 560361.2765 | L49: 443884.6281 | M49: 443884.6281
A50: 13 | C50: 0 | D50: 0.0725 | E50: 2 | F50: =G50-C50 -> 0 | H50: 746524.8911 | I50: 746524.8911 | J50: 582775.7276 | K50: 582775.7276 | L50: 452762.3207 | M50: 452762.3207
A51: 14 | C51: 0 | D51: 0.0725 | E51: 2 | F51: =G51-C51 -> 0 | H51: 791316.3845 | I51: 791316.3845 | J51: 606086.7567 | K51: 606086.7567 | L51: 461817.5671 | M51: 461817.5671
A52: 15 | D52: 0.0725 | E52: 2 | G52: 388656 | H52: 838795.3676 | I52: 450139.3676 | J52: 630330.2269 | K52: 241674.2269 | L52: 471053.9184 | M52: 82397.91841
A55: Payback of AF
A56: Year | C56: AF Principle Remaining | D56: Interest Rate | E56: Int. Accum. Factor | F56: Yearly Interest | G56: Payment Periods | H56: Monthly Payments | I56: Yearly Payments | J56: Interest Eligible Payments
A57: 0 | C57: =G37-G17 -> 12096 | D57: =D37 -> 0.0815
A58: 1 | C58: 11095.9131 | D58: 0.0815 | E58: =IF($I$1=1,1,IF($I$1=2,2,IF($I$1=3,4,IF($I$1=4,12,0)))) -> 2 | F58: =(((1+(D58/E58))^E58)*(C57-J58))-(C57-J58) -> 934.8078831 | G58: =IF(C11>11,11,C11) -> 11 | H58: 171 | I58: =G58*H58 -> 1881 | J58: =H58*5 -> 855
A59: 2 | C59: 9915.163651 | D59: 0.0865 | E59: 2 | F59: =(((1+(D59/E59))^E59)*(C58-J59))-(C58-J59) -> 889.8838851 | G59: =IF($C$11>(G58+12),12,($C$11-G58)) -> 12 | H59: =H58 -> 171 | I59: =G59*H59 -> 2052 | J59: =I59/2 -> 1026
A60: 3 | C60: 8633.877897 | D60: 0.0865 | E60: 2 | F60: =(((1+(D60/E60))^E60)*(C59-J60))-(C59-J60) -> 785.540392 | G60: =IF($C$11>(SUM($G$58:G59)+12),12,($C$11-SUM($G$58:G59))) -> 12 | H60: =H59 -> 171 | I60: 2052 | J60: 1026
A61: 4 | C61: 7242.414548 | D61: 0.084 | E61: 2 | F61: =(((1+(D61/E61))^E61)*(C60-J61))-(C60-J61) -> 652.4820399 | G61: =IF($C$11>(SUM($G$58:G60)+12),12,($C$11-SUM($G$58:G60))) -> 12 | H61: 171 | I61: 2052 | J61: 1026
A62: 5 | C62: 5731.178505 | D62: 0.0815 | E62: 2 | F62: 516.9605306 | G62: =IF($C$11>(SUM($G$58:G61)+12),12,($C$11-SUM($G$58:G61))) -> 12 | H62: 171 | I62: =G62*H62 -> 2052 | J62: 1026
A63: 6 | C63: 4090.680327 | D63: 0.079 | E63: 2 | F63: 379.0503567 | G63: =IF($C$11>(SUM($G$58:G62)+12),12,($C$11-SUM($G$58:G62))) -> 12 | H63: 171 | I63: 2052 | J63: 1026
A64: 7 | C64: 2309.931985 | D64: 0.0765 | E64: 2 | F64: =(((1+(D64/E64))^E64)*(C63-J64))-(C63-J64) -> 238.9318639 | G64: =IF($C$11>(SUM($G$58:G63)+12),12,($C$11-SUM($G$58:G63))) -> 12 | H64: 171 | I64: 2052 | J64: 1026
A65: 8 | C65: 376.7934438 | D65: 0.074 | E65: 2 | F65: 96.76866978 | G65: =IF($C$11>(SUM($G$58:G64)+12),12,($C$11-SUM($G$58:G64))) -> 12 | H65: 171 | I65: 2052 | J65: 1026
A66: 9 | C66: -0.319492048 | D66: 0.0725 | E66: 2 | F66: =(((1+(D66/E66))^E66)*(C65-J66))-(C65-J66) -> 8.879347777 | G66: =IF($C$11>(SUM($G$58:G65)+12),12,($C$11-SUM($G$58:G65))) -> 3 | H66: 171 | I66: 513 | J66: 256.5
A67: 10 | C67: 0.2753827586 | D67: 0.0725 | E67: 2 | G67: =IF($C$11>(SUM($G$58:G66)+12),12,($C$11-SUM($G$58:G66))) -> 0
A68: 11 | C68: -292313.3684 | D68: 0.0725 | E68: 2 | G68: =IF($C$11>(SUM($G$58:G67)+12),12,($C$11-SUM($G$58:G67))) -> 0
A69: 12 | C69: -313890.2056 | D69: 0.0725 | E69: 2 | G69: =IF($C$11>(SUM($G$58:G68)+12),12,($C$11-SUM($G$58:G68))) -> 0
A70: 13 | C70: -337059.7169 | D70: 0.0725 | E70: 2 | G70: =IF($C$11>(SUM($G$58:G69)+12),12,($C$11-SUM($G$58:G69))) -> 0
A71: 14 | C71: -361939.4639 | D71: 0.0725 | E71: 2 | G71: =IF($C$11>(SUM($G$58:G70)+12),12,($C$11-SUM($G$58:G70))) -> 0
A72: 15 | C72: 0.3138991228 | D72: 0.0725 | E72: 2 | G72: =IF($C$11>(SUM($G$58:G71)+12),12,($C$11-SUM($G$58:G71))) -> 0
A87: Rate | B87: 0.086 | D87: Additional Finance Portion | H87: HIP Max Portion
A88: Principle | B88: 178275 | C88: Month | D88: AF Interest | E88: Remaining | F88: Accumulated | G88: Accum Interest | H88: Payments | I88: Interest | J88: Remaining | K88: Accum Interest
A89: Value after Year 1 | B89: =(B88*(1+(B87/2))^2) -> 193936.2805 | C89: 1 | E89: =B93 -> 18105 | F89: =E89 -> 18105 | G89: =D89 -> 0 | H89: 0 | I89: =B88*(B87/12) -> 1277.6375 | J89: =I89+B88 -> 179552.6375 | K89: =I89 -> 1277.6375
A90: Interest per Month | B90: =(B89-B88)/12 -> 1305.106706 | C90: 2 | E90: =F89-$B$94 -> 17850 | F90: =E90 -> 17850 | G90: =D90+G89 -> 0 | H90: 0 | I90: =J89*($B$87/12) -> 1286.793902 | J90: =I90+J89 -> 180839.4314 | K90: =I90+K89 -> 2564.431402
C91: 3 | E91: 17595 | F91: =E91 -> 17595 | G91: =D91+G90 -> 0 | H91: 0 | I91: 1296.015925 | J91: =I91+J90 -> 182135.4473 | K91: =I91+K90 -> 3860.447327
A92: AF Portion | B92: 24552 | C92: 4 | E92: 17340 | F92: 17340 | G92: 0 | H92: 0 | I92: 1305.304039 | J92: 183440.7514 | K92: 5165.751366
A93: Total AF Payment | B93: =B94*B95 -> 18105 | C93: 5 | E93: 17085 | F93: 17085 | G93: 0 | H93: 0 | I93: 1314.658718 | J93: 184755.4101 | K93: 6480.410084
A94: Monthly Payment | B94: 255 | C94: 6 | E94: 16830 | F94: 16830 | G94: 0 | H94: 0 | I94: 1324.080439 | J94: 186079.4905 | K94: 7804.490523
A95: Payment Periods | B95: 71 | C95: 7 | E95: 16575 | F95: 16575 | G95: 0 | H95: 0 | I95: 1333.569682 | J95: 187413.0602 | K95: 9138.060205
C96: 8 | E96: 16320 | F96: 16320 | G96: 0 | H96: 0 | I96: 1343.126931 | J96: 188756.1871 | K96: 10481.18714
C97: 9 | E97: 16065 | F97: 16065 | G97: 0 | H97: 0 | I97: 1352.752674 | J97: 190108.9398 | K97: 11833.93981
C98: 10 | E98: 15810 | F98: 15810 | G98: 0 | H98: 0 | I98: 1362.447402 | J98: 191471.3872 | K98: 13196.38721
C99: 11 | E99: 15555 | F99: 15555 | G99: 0 | H99: 0 | I99: 1372.211608 | J99: 192843.5988 | K99: 14568.59882
C100: 12 | E100: 15300 | F100: 15300 | G100: 0 | H100: 0 | I100: 1382.045792 | J100: 194225.6446 | K100: 15950.64461
C101: 13 | E101: =F100 -> 15300 | F101: 15300 | G101: 0 | H101: 0 | I101: 1391.950453 | J101: 195617.5951 | K101: 17342.59507
C102: 14 | E102: =F101 -> 15300 | F102: 15300 | G102: 0 | H102: 0 | I102: 1401.926098 | J102: 197019.5212 | K102: 18744.52116
C103: 15 | E103: 15300 | F103: 15300 | G103: 0 | H103: 0 | I103: 1411.973235 | J103: 198431.4944 | K103: 20156.4944
C104: 16 | E104: 15300 | F104: 15300 | G104: 0 | H104: 0 | I104: 1422.092377 | J104: 199853.5868 | K104: 21578.58678
C105: 17 | E105: 15300 | F105: 15300 | G105: 0 | H105: 0 | I105: 1432.284039 | J105: 201285.8708 | K105: 23010.87081
C106: 18 | E106: 15300 | F106: 15300 | G106: 0 | H106: 0 | I106: 1442.548741 | J106: 202728.4196 | K106: 24453.41956
C107: 19 | E107: 15300 | F107: 15300 | G107: 0 | H107: 0 | I107: 1452.887007 | J107: 204181.3066 | K107: 25906.30656
C108: 20 | E108: 15300 | F108: 15300 | G108: 0 | H108: 0 | I108: 1463.299364 | J108: 205644.6059 | K108: 27369.60593
C109: 21 | E109: 15300 | F109: 15300 | G109: 0 | H109: 0 | I109: 1473.786342 | J109: 207118.3923 | K109: 28843.39227
C110: 22 | E110: 15300 | F110: 15300 | G110: 0 | H110: 0 | I110: 1484.348478 | J110: 208602.7407 | K110: 30327.74075
C111: 23 | E111: 15300 | F111: 15300 | G111: 0 | H111: 0 | I111: 1494.986309 | J111: 210097.7271 | K111: 31822.72705
C112: 24 | E112: 15300 | F112: 15300 | G112: 0 | H112: 0 | I112: 1505.700377 | J112: 211603.4274 | K112: 33328.42743
C113: 25 | E113: 15300 | F113: 15300 | G113: 0 | H113: 0 | I113: 1516.49123 | J113: 213119.9187 | K113: 34844.91866
C114: 26 | E114: 15300 | F114: 15300 | G114: 0 | H114: 0 | I114: 1527.359417 | J114: 214647.2781 | K114: 36372.27808
C115: 27 | E115: 15300 | F115: 15300 | G115: 0 | H115: 0 | I115: 1538.305493 | J115: 216185.5836 | K115: 37910.58357
C116: 28 | E116: 15300 | F116: 15300 | G116: 0 | H116: 0 | I116: 1549.330016 | J116: 217734.9136 | K116: 39459.91359
C117: 29 | E117: 15300 | F117: 15300 | G117: 0 | H117: 0 | I117: 1560.433547 | J117: 219295.3471 | K117: 41020.34713
C118: 30 | E118: 15300 | F118: 15300 | G118: 0 | H118: 0 | I118: 1571.616654 | J118: 220866.9638 | K118: 42591.96379
C119: 31 | E119: 15300 | F119: 15300 | G119: 0 | H119: 0 | I119: 1582.879907 | J119: 222449.8437 | K119: 44174.8437
C120: 32 | E120: 15300 | F120: 15300 | G120: 0 | H120: 0 | I120: 1594.22388 | J120: 224044.0676 | K120: 45769.06758
C121: 33 | E121: 15300 | F121: 15300 | G121: 0 | H121: 0 | I121: 1605.649151 | J121: 225649.7167 | K121: 47374.71673
C122: 34 | E122: 15300 | F122: 15300 | G122: 0 | H122: 0 | I122: =J121*($B$87/12) -> 1617.156303 | J122: 227266.873 | K122: 48991.87303
C123: 35 | E123: 15300 | F123: 15300 | G123: 0 | H123: 0 | I123: 1628.745923 | J123: 228895.619 | K123: 50620.61895
C124: 36 | E124: 15300 | F124: 15300 | G124: 0 | H124: 0 | I124: 1640.418603 | J124: 230536.0376 | K124: 52261.03756
C125: 37 | E125: 15300 | F125: 15300 | G125: 0 | H125: 0 | I125: 1652.174936 | J125: 232188.2125 | K125: 53913.21249
C126: 38 | E126: 15300 | F126: 15300 | G126: 0 | H126: 0 | I126: 1664.015523 | J126: 233852.228 | K126: 55577.22802
C127: 39 | E127: 15300 | F127: 15300 | G127: 0 | H127: 0 | I127: 1675.940967 | J127: 235528.169 | K127: 57253.16898
C128: 40 | E128: 15300 | F128: 15300 | G128: 0 | H128: 0 | I128: 1687.951878 | J128: 237216.1209 | K128: 58941.12086
C129: 41 | E129: 15300 | F129: 15300 | G129: 0 | H129: 0 | I129: 1700.048866 | J129: 238916.1697 | K129: 60641.16973
C130: 42 | E130: 15300 | F130: 15300 | G130: 0 | H130: 0 | I130: 1712.23255 | J130: 240628.4023 | K130: 62353.40228
C131: 43 | E131: 15300 | F131: 15300 | G131: 0 | H131: 0 | I131: 1724.50355 | J131: 242352.9058 | K131: 64077.90583
C132: 44 | E132: 15300 | F132: 15300 | G132: 0 | H132: 0 | I132: 1736.862492 | J132: 244089.7683 | K132: 65814.76832
C133: 45 | E133: 15300 | F133: 15300 | G133: 0 | H133: 0 | I133: 1749.310006 | J133: 245839.0783 | K133: 67564.07832
C134: 46 | E134: 15300 | F134: 15300 | G134: 0 | H134: 0 | I134: 1761.846728 | J134: 247600.9251 | K134: 69325.92505
C135: 47 | E135: 15300 | F135: 15300 | G135: 0 | H135: 0 | I135: 1774.473296 | J135: 249375.3983 | K135: 71100.39835
C136: 48 | E136: 15300 | F136: 15300 | G136: 0 | H136: 0 | I136: 1787.190355 | J136: 251162.5887 | K136: 72887.5887
C137: 49 | E137: 15300 | F137: 15300 | G137: 0 | H137: 0 | I137: 1799.998552 | J137: 252962.5873 | K137: 74687.58726
C138: 50 | E138: 15300 | F138: 15300 | G138: 0 | H138: 0 | I138: 1812.898542 | J138: 254775.4858 | K138: 76500.4858
C139: 51 | E139: 15300 | F139: 15300 | G139: 0 | H139: 0 | I139: 1825.890982 | J139: 256601.3768 | K139: 78326.37678
C140: 52 | E140: 15300 | F140: 15300 | G140: 0 | H140: 0 | I140: 1838.976534 | J140: 258440.3533 | K140: 80165.35331
C141: 53 | E141: 15300 | F141: 15300 | G141: 0 | H141: 0 | I141: 1852.155865 | J141: 260292.5092 | K141: 82017.50918
C142: 54 | E142: 15300 | F142: 15300 | G142: 0 | H142: 0 | I142: 1865.429649 | J142: 262157.9388 | K142: 83882.93883
C143: 55 | E143: 15300 | F143: 15300 | G143: 0 | H143: 0 | I143: 1878.798562 | J143: 264036.7374 | K143: 85761.73739
C144: 56 | E144: 15300 | F144: 15300 | G144: 0 | H144: 0 | I144: 1892.263285 | J144: 265929.0007 | K144: 87654.00067
C145: 57 | E145: 15300 | F145: 15300 | G145: 0 | H145: 0 | I145: 1905.824505 | J145: 267834.8252 | K145: 89559.82518
C146: 58 | E146: 15300 | F146: 15300 | G146: 0 | H146: 0 | I146: 1919.482914 | J146: 269754.3081 | K146: 91479.30809
C147: 59 | E147: 15300 | F147: 15300 | G147: 0 | H147: 0 | I147: 1933.239208 | J147: 271687.5473 | K147: 93412.5473
C148: 60 | E148: 15300 | F148: 15300 | G148: 0 | H148: 0 | I148: 1947.094089 | J148: 273634.6414 | K148: 95359.64139
C149: 61 | E149: 15300 | F149: 15300 | G149: 0 | H149: 0 | I149: 1961.048263 | J149: 275595.6897 | K149: 97320.68965
C150: 62 | E150: 15300 | F150: 15300 | G150: 0 | H150: 0 | I150: 1975.102443 | J150: 277570.7921 | K150: 99295.79209
C151: 63 | E151: 15300 | F151: 15300 | G151: 0 | H151: 0 | I151: 1989.257343 | J151: 279560.0494 | K151: 101285.0494
C152: 64 | E152: 15300 | F152: 15300 | G152: 0 | H152: 0 | I152: 2003.513688 | J152: 281563.5631 | K152: 103288.5631
C153: 65 | E153: 15300 | F153: 15300 | G153: 0 | H153: 0 | I153: 2017.872202 | J153: 283581.4353 | K153: 105306.4353
C154: 66 | E154: 15300 | F154: 15300 | G154: 0 | H154: 0 | I154: =J153*($B$87/12) -> 2032.33362 | J154: 285613.7689 | K154: 107338.7689
C155: 67 | E155: 15300 | F155: =E155 -> 15300 | G155: =D155+G154 -> 0 | H155: 0 | I155: 2046.898677 | J155: =I155+J154 -> 287660.6676 | K155: =I155+K154 -> 109385.6676
C156: 68 | E156: 15300 | F156: 15300 | G156: 0 | H156: 0 | I156: 2061.568118 | J156: 289722.2357 | K156: 111447.2357
C157: 69 | E157: 15300 | F157: 15300 | G157: 0 | H157: 0 | I157: 2076.342689 | J157: 291798.5784 | K157: 113523.5784
C158: 70 | E158: 15300 | F158: 15300 | G158: 0 | H158: 0 | I158: 2091.223145 | J158: 293889.8016 | K158: 115614.8016
C159: 71 | E159: 15300 | F159: 15300 | G159: 0 | H159: 0 | I159: 2106.210245 | J159: 295996.0118 | K159: 117721.0118
C160: 72 | E160: 15300 | F160: 15300 | G160: 0 | H160: 0 | I160: 2121.304751 | J160: 298117.3166 | K160: 119842.3166
C161: 73 | E161: 15300 | F161: 15300 | G161: 0 | H161: 0 | I161: 2136.507435 | J161: 300253.824 | K161: 121978.824
C162: 74 | E162: 15300 | F162: 15300 | G162: 0 | H162: 0 | I162: 2151.819072 | J162: 302405.6431 | K162: 124130.6431
C163: 75 | E163: 15300 | F163: 15300 | G163: 0 | H163: 0 | I163: 2167.240442 | J163: 304572.8835 | K163: 126297.8835
C164: 76 | E164: 15300 | F164: 15300 | G164: 0 | H164: 0 | I164: 2182.772332 | J164: 306755.6559 | K164: 128480.6559
C165: 77 | E165: 15300 | F165: 15300 | G165: 0 | H165: 0 | I165: 2198.415534 | J165: 308954.0714 | K165: 130679.0714
C166: 78 | E166: =F165 -> 15300 | F166: 15300 | G166: 0 | H166: 0 | I166: 2214.170845 | J166: 311168.2422 | K166: 132893.2422
C167: 79 | E167: 15300 | F167: 15300 | G167: 0 | H167: 0 | I167: 2230.039069 | J167: 313398.2813 | K167: 135123.2813
C168: 80 | E168: 15300 | F168: 15300 | G168: 0 | H168: 0 | I168: 2246.021016 | J168: 315644.3023 | K168: 137369.3023
C169: 81 | E169: 15300 | F169: 15300 | G169: 0 | H169: 0 | I169: 2262.1175 | J169: 317906.4198 | K169: 139631.4198
C170: 82 | E170: 15300 | F170: 15300 | G170: 0 | H170: 0 | I170: 2278.329342 | J170: 320184.7492 | K170: 141909.7492
C171: 83 | E171: 15300 | F171: 15300 | G171: 0 | H171: 0 | I171: 2294.657369 | J171: 322479.4065 | K171: 144204.4065
C172: 84 | E172: 15300 | F172: 15300 | G172: 0 | H172: 0 | I172: 2311.102413 | J172: 324790.5089 | K172: 146515.5089
C173: 85 | E173: 15300 | F173: 15300 | G173: 0 | H173: 0 | I173: 2327.665314 | J173: 327118.1743 | K173: 148843.1743
C174: 86 | E174: 15300 | F174: 15300 | G174: 0 | H174: 0 | I174: 2344.346916 | J174: 329462.5212 | K174: 151187.5212
C175: 87 | E175: 15300 | F175: 15300 | G175: 0 | H175: 0 | I175: 2361.148068 | J175: 331823.6692 | K175: 153548.6692
C176: 88 | E176: 15300 | F176: 15300 | G176: 0 | H176: 0 | I176: 2378.06963 | J176: 334201.7389 | K176: 155926.7389
C177: 89 | E177: 15300 | F177: 15300 | G177: 0 | H177: 0 | I177: 2395.112462 | J177: 336596.8513 | K177: 158321.8513
C178: 90 | E178: 15300 | F178: 15300 | G178: 0 | H178: 0 | I178: 2412.277435 | J178: 339009.1288 | K178: 160734.1288
C179: 91 | E179: 15300 | F179: 15300 | G179: 0 | H179: 0 | I179: 2429.565423 | J179: 341438.6942 | K179: 163163.6942
C180: 92 | E180: 15300 | F180: 15300 | G180: 0 | H180: 0 | I180: 2446.977308 | J180: 343885.6715 | K180: 165610.6715
C181: 93 | E181: 15300 | F181: 15300 | G181: 0 | H181: 0 | I181: 2464.513979 | J181: 346350.1855 | K181: 168075.1855
C182: 94 | E182: 15300 | F182: 15300 | G182: 0 | H182: 0 | I182: 2482.176329 | J182: 348832.3618 | K182: 170557.3618
C183: 95 | E183: 15300 | F183: 15300 | G183: 0 | H183: 0 | I183: 2499.96526 | J183: 351332.3271 | K183: 173057.3271
C184: 96 | E184: 15300 | F184: 15300 | G184: 0 | H184: 0 | I184: 2517.881677 | J184: 353850.2087 | K184: 175575.2087
C185: 97 | E185: 15300 | F185: 15300 | G185: 0 | H185: 0 | I185: 2535.926496 | J185: 356386.1352 | K185: 178111.1352
C186: 98 | E186: 15300 | F186: 15300 | G186: 0 | H186: 0 | I186: =J185*($B$87/12) -> 2554.100636 | J186: 358940.2359 | K186: 180665.2359
C187: 99 | E187: 15300 | F187: 15300 | G187: 0 | H187: 0 | I187: 2572.405024 | J187: 361512.6409 | K187: 183237.6409
C188: 100 | E188: 15300 | F188: 15300 | G188: 0 | H188: 0 | I188: 2590.840593 | J188: 364103.4815 | K188: 185828.4815
C189: 101 | E189: 15300 | F189: 15300 | G189: 0 | H189: 0 | I189: 2609.408284 | J189: 366712.8898 | K189: 188437.8898
C190: 102 | E190: 15300 | F190: 15300 | G190: 0 | H190: 0 | I190: 2628.109043 | J190: 369340.9988 | K190: 191065.9988
C191: 103 | E191: 15300 | F191: 15300 | G191: 0 | H191: 0 | I191: 2646.943825 | J191: 371987.9426 | K191: 193712.9426
C192: 104 | E192: 15300 | F192: 15300 | G192: 0 | H192: 0 | I192: 2665.913589 | J192: 374653.8562 | K192: 196378.8562
C193: 105 | E193: 15300 | F193: 15300 | G193: 0 | H193: 0 | I193: 2685.019303 | J193: 377338.8755 | K193: 199063.8755

Sheet PA Interest Calculations (hidden)
I1: Factor: | J1: =ROUND((1+'Income Advantage'!F23/2)^(1/6),6) -> 1.004116
B2: Month | C2: Opening Balance | D2: Closing Balance | E2: Interest | F2: Year | G2: Yearly Interest
B3: 1 | C3: =IF(B3<='Income Advantage'!Years*12,'Income Advantage'!$F$21,0) -> 1000 | D3: =+C3*$J$1 -> 1004.116 | E3: =+D3-C3 -> 4.116 | F3: 1 | G3: =SUM(E3:E14) -> 325.9434855
B4: 2 | C4: =IF(B4<='Income Advantage'!Years*12,'Income Advantage'!$F$21+D3,D3) -> 2004.116 | D4: =+C4*$J$1 -> 2012.364941 | E4: =+D4-C4 -> 8.248941456 | F4: 2 | G4: =SUM(E15:E26) -> 948.7194214
B5: 3 | C5: =IF(B5<='Income Advantage'!Years*12,'Income Advantage'!$F$21+D4,D4) -> 3012.364941 | D5: 3024.763836 | E5: 12.3988941 | F5: 3 | G5: =SUM(E27:E38) -> 1602.961498
B6: 4 | C6: =IF(B6<='Income Advantage'!Years*12,'Income Advantage'!$F$21+D5,D5) -> 4024.763836 | D6: 4041.329764 | E6: 16.56592795 | F6: 4 | G6: =SUM(E39:E50) -> 2290.25956
B7: 5 | C7: =IF(B7<='Income Advantage'!Years*12,'Income Advantage'!$F$21+D6,D6) -> 5041.329764 | D7: 5062.079877 | E7: 20.75011331 | F7: 5 | G7: =SUM(E51:E62) -> 3012.283783
B8: 6 | C8: =IF(B8<='Income Advantage'!Years*12,'Income Advantage'!$F$21+D7,D7) -> 6062.079877 | D8: 6087.031398 | E8: 24.95152077 | F8: 6 | G8: =SUM(E63:E74) -> 3770.788728
B9: 7 | C9: =IF(B9<='Income Advantage'!Years*12,'Income Advantage'!$F$21+D8,D8) -> 7087.031398 | D9: 7116.201619 | E9: 29.17022123 | F9: 7 | G9: =SUM(E75:E86) -> 4567.617606
B10: 8 | C10: =IF(B10<='Income Advantage'!Years*12,'Income Advantage'!$F$21+D9,D9) -> 8116.201619 | D10: 8149.607905 | E10: 33.40628586 | F10: 8 | G10: =SUM(E87:E98) -> 5404.706756
B11: 9 | C11: =IF(B11<='Income Advantage'!Years*12,'Income Advantage'!$F$21+D10,D10) -> 9149.607905 | D11: 9187.267691 | E11: 37.65978614 | F11: 9 | G11: =SUM(E99:E110) -> 6284.090355
B12: 10 | C12: =IF(B12<='Income Advantage'!Years*12,'Income Advantage'!$F$21+D11,D11) -> 10187.26769 | D12: 10229.19848 | E12: 41.93079382 | F12: 10 | G12: =SUM(E111:E122) -> 7207.905355
B13: 11 | C13: =IF(B13<='Income Advantage'!Years*12,'Income Advantage'!$F$21+D12,D12) -> 11229.19848 | D13: 11275.41787 | E13: 46.21938096 | F13: 11 | G13: =SUM(E123:E134) -> 8178.39668
B14: 12 | C14: =IF(B14<='Income Advantage'!Years*12,'Income Advantage'!$F$21+D13,D13) -> 12275.41787 | D14: 12325.94349 | E14: 50.52561993 | F14: 12 | G14: =SUM(E135:E146) -> 9197.922682
B15: 13 | C15: =IF(B15<='Income Advantage'!Years*12,'Income Advantage'!$F$21+D14,D14) -> 13325.94349 | D15: 13380.79307 | E15: 54.84958339 | F15: 13 | G15: =SUM(E147:E158) -> 10268.96087
B16: 14 | C16: =IF(B16<='Income Advantage'!Years*12,'Income Advantage'!$F$21+D15,D15) -> 14380.79307 | D16: 14439.98441 | E16: 59.19134427 | F16: 14 | G16: =SUM(E159:E170) -> 11394.11392
B17: 15 | C17: =IF(B17<='Income Advantage'!Years*12,'Income Advantage'!$F$21+D16,D16) -> 15439.98441 | D17: 15503.53539 | E17: 63.55097584 | F17: 15 | G17: =SUM(E171:E182) -> 12576.11603
B18: 16 | C18: =IF(B18<='Income Advantage'!Years*12,'Income Advantage'!$F$21+D17,D17) -> 16503.53539 | D18: 16571.46394 | E18: 67.92855166
B19: 17 | C19: =IF(B19<='Income Advantage'!Years*12,'Income Advantage'!$F$21+D18,D18) -> 17571.46394 | D19: 17643.78809 | E19: 72.32414558
B20: 18 | C20: =IF(B20<='Income Advantage'!Years*12,'Income Advantage'!$F$21+D19,D19) -> 18643.78809 | D20: 18720.52592 | E20: 76.73783176
B21: 19 | C21: =IF(B21<='Income Advantage'!Years*12,'Income Advantage'!$F$21+D20,D20) -> 19720.52592 | D21: 19801.6956 | E21: 81.16968468
B22: 20 | C22: =IF(B22<='Income Advantage'!Years*12,'Income Advantage'!$F$21+D21,D21) -> 20801.6956 | D22: 20887.31538 | E22: 85.6197791
B23: 21 | C23: =IF(B23<='Income Advantage'!Years*12,'Income Advantage'!$F$21+D22,D22) -> 21887.31538 | D23: 21977.40357 | E23: 90.08819011
B24: 22 | C24: =IF(B24<='Income Advantage'!Years*12,'Income Advantage'!$F$21+D23,D23) -> 22977.40357 | D24: 23071.97857 | E24: 94.5749931
B25: 23 | C25: =IF(B25<='Income Advantage'!Years*12,'Income Advantage'!$F$21+D24,D24) -> 24071.97857 | D25: 24171.05883 | E25: 99.08026377
B26: 24 | C26: =IF(B26<='Income Advantage'!Years*12,'Income Advantage'!$F$21+D25,D25) -> 25171.05883 | D26: 25274.66291 | E26: 103.6040781
B27: 25 | C27: =IF(B27<='Income Advantage'!Years*12,'Income Advantage'!$F$21+D26,D26) -> 26274.66291 | D27: 26382.80942 | E27: 108.1465125
B28: 26 | C28: =IF(B28<='Income Advantage'!Years*12,'Income Advantage'!$F$21+D27,D27) -> 27382.80942 | D28: 27495.51706 | E28: 112.7076436
B29: 27 | C29: =IF(B29<='Income Advantage'!Years*12,'Income Advantage'!$F$21+D28,D28) -> 28495.51706 | D29: 28612.80461 | E29: 117.2875482
B30: 28 | C30: =IF(B30<='Income Advantage'!Years*12,'Income Advantage'!$F$21+D29,D29) -> 29612.80461 | D30: 29734.69092 | E30: 121.8863038
B31: 29 | C31: =IF(B31<='Income Advantage'!Years*12,'Income Advantage'!$F$21+D30,D30) -> 30734.69092 | D31: 30861.1949 | E31: 126.5039878
B32: 30 | C32: =IF(B32<='Income Advantage'!Years*12,'Income Advantage'!$F$21+D31,D31) -> 31861.1949 | D32: 31992.33558 | E32: 131.1406782
B33: 31 | C33: =IF(B33<='Income Advantage'!Years*12,'Income Advantage'!$F$21+D32,D32) -> 32992.33558 | D33: 33128.13203 | E33: 135.7964533
B34: 32 | C34: =IF(B34<='Income Advantage'!Years*12,'Income Advantage'!$F$21+D33,D33) -> 34128.13203 | D34: 34268.60343 | E34: 140.4713915
B35: 33 | C35: =IF(B35<='Income Advantage'!Years*12,'Income Advantage'!$F$21+D34,D34) -> 35268.60343 | D35: 35413.769 | E35: 145.1655717
B36: 34 | C36: =IF(B36<='Income Advantage'!Years*12,'Income Advantage'!$F$21+D35,D35) -> 36413.769 | D36: 36563.64807 | E36: 149.8790732
B37: 35 | C37: =IF(B37<='Income Advantage'!Years*12,'Income Advantage'!$F$21+D36,D36) -> 37563.64807 | D37: 37718.26005 | E37: 154.6119755
B38: 36 | C38: =IF(B38<='Income Advantage'!Years*12,'Income Advantage'!$F$21+D37,D37) -> 38718.26005 | D38: 38877.6244 | E38: 159.3643583
B39: 37 | C39: =IF(B39<='Income Advantage'!Years*12,'Income Advantage'!$F$21+D38,D38) -> 39877.6244 | D39: 40041.76071 | E39: 164.136302
B40: 38 | C40: =IF(B40<='Income Advantage'!Years*12,'Income Advantage'!$F$21+D39,D39) -> 41041.76071 | D40: 41210.68859 | E40: 168.9278871
B41: 39 | C41: =IF(B41<='Income Advantage'!Years*12,'Income Advantage'!$F$21+D40,D40) -> 42210.68859 | D41: 42384.42779 | E41: 173.7391943
B42: 40 | C42: =IF(B42<='Income Advantage'!Years*12,'Income Advantage'!$F$21+D41,D41) -> 43384.42779 | D42: 43562.99809 | E42: 178.5703048
B43: 41 | C43: =IF(B43<='Income Advantage'!Years*12,'Income Advantage'!$F$21+D42,D42) -> 44562.99809 | D43: 44746.41939 | E43: 183.4213001
B44: 42 | C44: =IF(B44<='Income Advantage'!Years*12,'Income Advantage'!$F$21+D43,D43) -> 45746.41939 | D44: 45934.71165 | E44: 188.2922622
B45: 43 | C45: =IF(B45<='Income Advantage'!Years*12,'Income Advantage'!$F$21+D44,D44) -> 46934.71165 | D45: 47127.89493 | E45: 193.1832732
B46: 44 | C46: =IF(B46<='Income Advantage'!Years*12,'Income Advantage'!$F$21+D45,D45) -> 48127.89493 | D46: 48325.98934 | E46: 198.0944155
B47: 45 | C47: =IF(B47<='Income Advantage'!Years*12,'Income Advantage'!$F$21+D46,D46) -> 49325.98934 | D47: 49529.01512 | E47: 203.0257721
B48: 46 | C48: =IF(B48<='Income Advantage'!Years*12,'Income Advantage'!$F$21+D47,D47) -> 50529.01512 | D48: 50736.99254 | E48: 207.9774262
B49: 47 | C49: =IF(B49<='Income Advantage'!Years*12,'Income Advantage'!$F$21+D48,D48) -> 51736.99254 | D49: 51949.942 | E49: 212.9494613
B50: 48 | C50: =IF(B50<='Income Advantage'!Years*12,'Income Advantage'!$F$21+D49,D49) -> 52949.942 | D50: 53167.88396 | E50: 217.9419613
B51: 49 | C51: =IF(B51<='Income Advantage'!Years*12,'Income Advantage'!$F$21+D50,D50) -> 54167.88396 | D51: 54390.83898 | E51: 222.9550104
B52: 50 | C52: =IF(B52<='Income Advantage'!Years*12,'Income Advantage'!$F$21+D51,D51) -> 55390.83898 | D52: 55618.82767 | E52: 227.9886932
B53: 51 | C53: =IF(B53<='Income Advantage'!Years*12,'Income Advantage'!$F$21+D52,D52) -> 56618.82767 | D53: 56851.87076 | E53: 233.0430947
B54: 52 | C54: =IF(B54<='Income Advantage'!Years*12,'Income Advantage'!$F$21+D53,D53) -> 57851.87076 | D54: 58089.98906 | E54: 238.1183001
B55: 53 | C55: =IF(B55<='Income Advantage'!Years*12,'Income Advantage'!$F$21+D54,D54) -> 59089.98906 | D55: 59333.20346 | E55: 243.214395
B56: 54 | C56: =IF(B56<='Income Advantage'!Years*12,'Income Advantage'!$F$21+D55,D55) -> 60333.20346 | D56: 60581.53492 | E56: 248.3314654
B57: 55 | C57: =IF(B57<='Income Advantage'!Years*12,'Income Advantage'!$F$21+D56,D56) -> 61581.53492 | D57: 61835.00452 | E57: 253.4695977
B58: 56 | C58: =IF(B58<='Income Advantage'!Years*12,'Income Advantage'!$F$21+D57,D57) -> 62835.00452 | D58: 63093.6334 | E58: 258.6288786
B59: 57 | C59: =IF(B59<='Income Advantage'!Years*12,'Income Advantage'!$F$21+D58,D58) -> 64093.6334 | D59: 64357.44279 | E59: 263.8093951
B60: 58 | C60: =IF(B60<='Income Advantage'!Years*12,'Income Advantage'!$F$21+D59,D59) -> 65357.44279 | D60: 65626.45403 | E60: 269.0112345
B61: 59 | C61: =IF(B61<='Income Advantage'!Years*12,'Income Advantage'!$F$21+D60,D60) -> 66626.45403 | D61: 66900.68851 | E61: 274.2344848
B62: 60 | C62: =IF(B62<='Income Advantage'!Years*12,'Income Advantage'!$F$21+D61,D61) -> 67900.68851 | D62: 68180.16775 | E62: 279.4792339
B63: 61 | C63: =IF(B63<='Income Advantage'!Years*12,'Income Advantage'!$F$21+D62,D62) -> 69180.16775 | D63: 69464.91332 | E63: 284.7455705
B64: 62 | C64: =IF(B64<='Income Advantage'!Years*12,'Income Advantage'!$F$21+D63,D63) -> 70464.91332 | D64: 70754.9469 | E64: 290.0335832
B65: 63 | C65: =IF(B65<='Income Advantage'!Years*12,'Income Advantage'!$F$21+D64,D64) -> 71754.9469 | D65: 72050.29026 | E65: 295.3433614
B66: 64 | C66: =IF(B66<='Income Advantage'!Years*12,'Income Advantage'!$F$21+D65,D65) -> 73050.29026 | D66: 73350.96526 | E66: 300.6749947
B67: 65 | C67: =IF(B67<='Income Advantage'!Years*12,'Income Advantage'!$F$21+D66,D66) -> 74350.96526 | D67: 74656.99383 | E67: 306.028573
B68: 66 | C68: =IF(B68<='Income Advantage'!Years*12,'Income Advantage'!$F$21+D67,D67) -> 75656.99383 | D68: =+C68*$J$1 -> 75968.39802 | E68: =+D68-C68 -> 311.4041866
B69: 67 | C69: =IF(B69<='Income Advantage'!Years*12,'Income Advantage'!$F$21+D68,D68) -> 76968.39802 | D69: 77285.19994 | E69: 316.8019262
B70: 68 | C70: =IF(B70<='Income Advantage'!Years*12,'Income Advantage'!$F$21+D69,D69) -> 78285.19994 | D70: 78607.42183 | E70: 322.221883
B71: 69 | C71: =IF(B71<='Income Advantage'!Years*12,'Income Advantage'!$F$21+D70,D70) -> 79607.42183 | D71: 79935.08597 | E71: 327.6641482
B72: 70 | C72: =IF(B72<='Income Advantage'!Years*12,'Income Advantage'!$F$21+D71,D71) -> 80935.08597 | D72: 81268.21479 | E72: 333.1288139
B73: 71 | C73: =IF(B73<='Income Advantage'!Years*12,'Income Advantage'!$F$21+D72,D72) -> 82268.21479 | D73: 82606.83076 | E73: 338.6159721
B74: 72 | C74: =IF(B74<='Income Advantage'!Years*12,'Income Advantage'!$F$21+D73,D73) -> 83606.83076 | D74: 83950.95648 | E74: 344.1257154
B75: 73 | C75: =IF(B75<='Income Advantage'!Years*12,'Income Advantage'!$F$21+D74,D74) -> 84950.95648 | D75: 85300.61461 | E75: 349.6581369
B76: 74 | C76: =IF(B76<='Income Advantage'!Years*12,'Income Advantage'!$F$21+D75,D75) -> 86300.61461 | D76: 86655.82794 | E76: 355.2133297
B77: 75 | C77: =IF(B77<='Income Advantage'!Years*12,'Income Advantage'!$F$21+D76,D76) -> 87655.82794 | D77: 88016.61933 | E77: 360.7913878
B78: 76 | C78: =IF(B78<='Income Advantage'!Years*12,'Income Advantage'!$F$21+D77,D77) -> 89016.61933 | D78: 89383.01174 | E78: 366.3924052
B79: 77 | C79: =IF(B79<='Income Advantage'!Years*12,'Income Advantage'!$F$21+D78,D78) -> 90383.01174 | D79: 90755.02821 | E79: 372.0164763
B80: 78 | C80: =IF(B80<='Income Advantage'!Years*12,'Income Advantage'!$F$21+D79,D79) -> 91755.02821 | D80: 92132.69191 | E80: 377.6636961
B81: 79 | C81: =IF(B81<='Income Advantage'!Years*12,'Income Advantage'!$F$21+D80,D80) -> 93132.69191 | D81: 93516.02607 | E81: 383.3341599
B82: 80 | C82: =IF(B82<='Income Advantage'!Years*12,'Income Advantage'!$F$21+D81,D81) -> 94516.02607 | D82: 94905.05403 | E82: 389.0279633
B83: 81 | C83: =IF(B83<='Income Advantage'!Years*12,'Income Advantage'!$F$21+D82,D82) -> 95905.05403 | D83: 96299.79923 | E83: 394.7452024
B84: 82 | C84: =IF(B84<='Income Advantage'!Years*12,'Income Advantage'!$F$21+D83,D83) -> 97299.79923 | D84: 97700.28521 | E84: 400.4859736
B85: 83 | C85: =IF(B85<='Income Advantage'!Years*12,'Income Advantage'!$F$21+D84,D84) -> 98700.28521 | D85: 99106.53558 | E85: 406.2503739
B86: 84 | C86: =IF(B86<='Income Advantage'!Years*12,'Income Advantage'!$F$21+D85,D85) -> 100106.5356 | D86: 100518.5741 | E86: 412.0385005
B87: 85 | C87: =IF(B87<='Income Advantage'!Years*12,'Income Advantage'!$F$21+D86,D86) -> 101518.5741 | D87: 101936.4245 | E87: 417.8504509
B88: 86 | C88: =IF(B88<='Income Advantage'!Years*12,'Income Advantage'!$F$21+D87,D87) -> 102936.4245 | D88: 103360.1109 | E88: 423.6863234
B89: 87 | C89: =IF(B89<='Income Advantage'!Years*12,'Income Advantage'!$F$21+D88,D88) -> 104360.1109 | D89: 104789.6571 | E89: 429.5462163
B90: 88 | C90: =IF(B90<='Income Advantage'!Years*12,'Income Advantage'!$F$21+D89,D89) -> 105789.6571 | D90: 106225.0873 | E90: 435.4302285
B91: 89 | C91: =IF(B91<='Income Advantage'!Years*12,'Income Advantage'!$F$21+D90,D90) -> 107225.0873 | D91: 107666.4258 | E91: 441.3384593
B92: 90 | C92: =IF(B92<='Income Advantage'!Years*12,'Income Advantage'!$F$21+D91,D91) -> 108666.4258 | D92: 109113.6968 | E92: 447.2710084
B93: 91 | C93: =IF(B93<='Income Advantage'!Years*12,'Income Advantage'!$F$21+D92,D92) -> 110113.6968 | D93: 110566.9247 | E93: 453.2279759
B94: 92 | C94: =IF(B94<='Income Advantage'!Years*12,'Income Advantage'!$F$21+D93,D93) -> 111566.9247 | D94: 112026.1342 | E94: 459.2094622
B95: 93 | C95: =IF(B95<='Income Advantage'!Years*12,'Income Advantage'!$F$21+D94,D94) -> 113026.1342 | D95: 113491.3498 | E95: 465.2155684
B96: 94 | C96: =IF(B96<='Income Advantage'!Years*12,'Income Advantage'!$F$21+D95,D95) -> 114491.3498 | D96: 114962.5962 | E96: 471.2463957
B97: 95 | C97: =IF(B97<='Income Advantage'!Years*12,'Income Advantage'!$F$21+D96,D96) -> 115962.5962 | D97: 116439.8982 | E97: 477.3020458
B98: 96 | C98: =IF(B98<='Income Advantage'!Years*12,'Income Advantage'!$F$21+D97,D97) -> 117439.8982 | D98: 117923.2808 | E98: 483.3826211
B99: 97 | C99: =IF(B99<='Income Advantage'!Years*12,'Income Advantage'!$F$21+D98,D98) -> 118923.2808 | D99: 119412.7691 | E99: 489.4882239
B100: 98 | C100: =IF(B100<='Income Advantage'!Years*12,'Income Advantage'!$F$21+D99,D99) -> 120412.7691 | D100: 120908.388 | E100: 495.6189575
B101: 99 | C101: =IF(B101<='Income Advantage'!Years*12,'Income Advantage'!$F$21+D100,D100) -> 121908.388 | D101: 122410.1629 | E101: 501.7749251
B102: 100 | C102: =IF(B102<='Income Advantage'!Years*12,'Income Advantage'!$F$21+D101,D101) -> 123410.1629 | D102: 123918.1192 | E102: 507.9562307
B103: 101 | C103: =IF(B103<='Income Advantage'!Years*12,'Income Advantage'!$F$21+D102,D102) -> 124918.1192 | D103: 125432.2822 | E103: 514.1629785
B104: 102 | C104: =IF(B104<='Income Advantage'!Years*12,'Income Advantage'!$F$21+D103,D103) -> 126432.2822 | D104: 126952.6774 | E104: 520.3952733
B105: 103 | C105: =IF(B105<='Income Advantage'!Years*12,'Income Advantage'!$F$21+D104,D104) -> 127952.6774 | D105: 128479.3306 | E105: 526.6532203
B106: 104 | C106: =IF(B106<='Income Advantage'!Years*12,'Income Advantage'!$F$21+D105,D105) -> 129479.3306 | D106: 130012.2676 | E106: 532.9369249
B107: 105 | C107: =IF(B107<='Income Advantage'!Years*12,'Income Advantage'!$F$21+D106,D106) -> 131012.2676 | D107: 131551.5141 | E107: 539.2464933
B108: 106 | C108: =IF(B108<='Income Advantage'!Years*12,'Income Advantage'!$F$21+D107,D107) -> 132551.5141 | D108: 133097.0961 | E108: 545.5820319
B109: 107 | C109: =IF(B109<='Income Advantage'!Years*12,'Income Advantage'!$F$21+D108,D108) -> 134097.0961 | D109: 134649.0397 | E109: 551.9436475
B110: 108 | C110: =IF(B110<='Income Advantage'!Years*12,'Income Advantage'!$F$21+D109,D109) -> 135649.0397 | D110: 136207.3712 | E110: 558.3314476
B111: 109 | C111: =IF(B111<='Income Advantage'!Years*12,'Income Advantage'!$F$21+D110,D110) -> 137207.3712 | D111: 137772.1167 | E111: 564.7455398
B112: 110 | C112: =IF(B112<='Income Advantage'!Years*12,'Income Advantage'!$F$21+D111,D111) -> 138772.1167 | D112: 139343.3028 | E112: 571.1860325
B113: 111 | C113: =IF(B113<='Income Advantage'!Years*12,'Income Advantage'!$F$21+D112,D112) -> 140343.3028 | D113: 140920.9558 | E113: 577.6530342
B114: 112 | C114: =IF(B114<='Income Advantage'!Years*12,'Income Advantage'!$F$21+D113,D113) -> 141920.9558 | D114: 142505.1025 | E114: 584.1466541
B115: 113 | C115: =IF(B115<='Income Advantage'!Years*12,'Income Advantage'!$F$21+D114,D114) -> 143505.1025 | D115: 144095.7695 | E115: 590.6670017
B116: 114 | C116: =IF(B116<='Income Advantage'!Years*12,'Income Advantage'!$F$21+D115,D115) -> 145095.7695 | D116: 145692.9836 | E116: 597.2141871
B117: 115 | C117: =IF(B117<='Income Advantage'!Years*12,'Income Advantage'!$F$21+D116,D116) -> 146692.9836 | D117: 147296.772 | E117: 603.7883207
B118: 116 | C118: =IF(B118<='Income Advantage'!Years*12,'Income Advantage'!$F$21+D117,D117) -> 148296.772 | D118: 148907.1615 | E118: 610.3895134
B119: 117 | C119: =IF(B119<='Income Advantage'!Years*12,'Income Advantage'!$F$21+D118,D118) -> 149907.1615 | D119: 150524.1794 | E119: 617.0178766
B120: 118 | C120: =IF(B120<='Income Advantage'!Years*12,'Income Advantage'!$F$21+D119,D119) -> 151524.1794 | D120: 152147.8529 | E120: 623.6735222
B121: 119 | C121: =IF(B121<='Income Advantage'!Years*12,'Income Advantage'!$F$21+D120,D120) -> 153147.8529 | D121: 153778.2094 | E121: 630.3565624
B122: 120 | C122: =IF(B122<='Income Advantage'!Years*12,'Income Advantage'!$F$21+D121,D121) -> 154778.2094 | D122: 155415.2765 | E122: 637.06711
B123: 121 | C123: =IF(B123<='Income Advantage'!Years*12,'Income Advantage'!$F$21+D122,D122) -> 156415.2765 | D123: 157059.0818 | E123: 643.8052783
B124: 122 | C124: =IF(B124<='Income Advantage'!Years*12,'Income Advantage'!$F$21+D123,D123) -> 158059.0818 | D124: 158709.653 | E124: 650.5711808
B125: 123 | C125: =IF(B125<='Income Advantage'!Years*12,'Income Advantage'!$F$21+D124,D124) -> 159709.653 | D125: 160367.0179 | E125: 657.3649318
B126: 124 | C126: =IF(B126<='Income Advantage'!Years*12,'Income Advantage'!$F$21+D125,D125) -> 161367.0179 | D126: 162031.2046 | E126: 664.1866458
B127: 125 | C127: =IF(B127<='Income Advantage'!Years*12,'Income Advantage'!$F$21+D126,D126) -> 163031.2046 | D127: 163702.241 | E127: 671.0364381
B128: 126 | C128: =IF(B128<='Income Advantage'!Years*12,'Income Advantage'!$F$21+D127,D127) -> 164702.241 | D128: 165380.1554 | E128: 677.914424
B129: 127 | C129: =IF(B129<='Income Advantage'!Years*12,'Income Advantage'!$F$21+D128,D128) -> 166380.1554 | D129: 167064.9762 | E129: 684.8207198
B130: 128 | C130: =IF(B130<='Income Advantage'!Years*12,'Income Advantage'!$F$21+D129,D129) -> 168064.9762 | D130: 168756.7316 | E130: 691.7554419
B131: 129 | C131: =IF(B131<='Income Advantage'!Years*12,'Income Advantage'!$F$21+D130,D130) -> 169756.7316 | D131: 170455.4503 | E131: 698.7187073
B132: 130 | C132: =IF(B132<='Income Advantage'!Years*12,'Income Advantage'!$F$21+D131,D131) -> 171455.4503 | D132: =+C132*$J$1 -> 172161.1609 | E132: =+D132-C132 -> 705.7106335
B133: 131 | C133: =IF(B133<='Income Advantage'!Years*12,'Income Advantage'!$F$21+D132,D132) -> 173161.1609 | D133: 173873.8923 | E133: 712.7313385
B134: 132 | C134: =IF(B134<='Income Advantage'!Years*12,'Income Advantage'!$F$21+D133,D133) -> 174873.8923 | D134: 175593.6732 | E134: 719.7809407
B135: 133 | C135: =IF(B135<='Income Advantage'!Years*12,'Income Advantage'!$F$21+D134,D134) -> 176593.6732 | D135: 177320.5328 | E135: 726.859559
B136: 134 | C136: =IF(B136<='Income Advantage'!Years*12,'Income Advantage'!$F$21+D135,D135) -> 178320.5328 | D136: 179054.5001 | E136: 733.9673129
B137: 135 | C137: =IF(B137<='Income Advantage'!Years*12,'Income Advantage'!$F$21+D136,D136) -> 180054.5001 | D137: 180795.6044 | E137: 741.1043224
B138: 136 | C138: =IF(B138<='Income Advantage'!Years*12,'Income Advantage'!$F$21+D137,D137) -> 181795.6044 | D138: 182543.8751 | E138: 748.2707078
B139: 137 | C139: =IF(B139<='Income Advantage'!Years*12,'Income Advantage'!$F$21+D138,D138) -> 183543.8751 | D139: 184299.3417 | E139: 755.46659
B140: 138 | C140: =IF(B140<='Income Advantage'!Years*12,'Income Advantage'!$F$21+D139,D139) -> 185299.3417 | D140: 186062.0338 | E140: 762.6920905
B141: 139 | C141: =IF(B141<='Income Advantage'!Years*12,'Income Advantage'!$F$21+D140,D140) -> 187062.0338 | D141: 187831.9811 | E141: 769.9473312
B142: 140 | C142: =IF(B142<='Income Advantage'!Years*12,'Income Advantage'!$F$21+D141,D141) -> 188831.9811 | D142: 189609.2136 | E142: 777.2324344
B143: 141 | C143: =IF(B143<='Income Advantage'!Years*12,'Income Advantage'!$F$21+D142,D142) -> 190609.2136 | D143: 191393.7611 | E143: 784.5475231
B144: 142 | C144: =IF(B144<='Income Advantage'!Years*12,'Income Advantage'!$F$21+D143,D143) -> 192393.7611 | D144: 193185.6538 | E144: 791.8927207
B145: 143 | C145: =IF(B145<='Income Advantage'!Years*12,'Income Advantage'!$F$21+D144,D144) -> 194185.6538 | D145: 194984.922 | E145: 799.2681511
B146: 144 | C146: =IF(B146<='Income Advantage'!Years*12,'Income Advantage'!$F$21+D145,D145) -> 195984.922 | D146: 196791.5959 | E146: 806.6739388
B147: 145 | C147: =IF(B147<='Income Advantage'!Years*12,'Income Advantage'!$F$21+D146,D146) -> 197791.5959 | D147: 198605.7061 | E147: 814.1102088
B148: 146 | C148: =IF(B148<='Income Advantage'!Years*12,'Income Advantage'!$F$21+D147,D147) -> 199605.7061 | D148: 200427.2832 | E148: 821.5770864
B149: 147 | C149: =IF(B149<='Income Advantage'!Years*12,'Income Advantage'!$F$21+D148,D148) -> 201427.2832 | D149: 202256.3579 | E149: 829.0746977
B150: 148 | C150: =IF(B150<='Income Advantage'!Years*12,'Income Advantage'!$F$21+D149,D149) -> 203256.3579 | D150: 204092.9611 | E150: 836.6031691
B151: 149 | C151: =IF(B151<='Income Advantage'!Years*12,'Income Advantage'!$F$21+D150,D150) -> 205092.9611 | D151: 205937.1237 | E151: 844.1626278
B152: 150 | C152: =IF(B152<='Income Advantage'!Years*12,'Income Advantage'!$F$21+D151,D151) -> 206937.1237 | D152: 207788.8769 | E152: 851.7532011
B153: 151 | C153: =IF(B153<='Income Advantage'!Years*12,'Income Advantage'!$F$21+D152,D152) -> 208788.8769 | D153: 209648.2519 | E153: 859.3750173
B154: 152 | C154: =IF(B154<='Income Advantage'!Years*12,'Income Advantage'!$F$21+D153,D153) -> 210648.2519 | D154: 211515.2801 | E154: 867.0282049
B155: 153 | C155: =IF(B155<='Income Advantage'!Years*12,'Income Advantage'!$F$21+D154,D154) -> 212515.2801 | D155: 213389.993 | E155: 874.712893
B156: 154 | C156: =IF(B156<='Income Advantage'!Years*12,'Income Advantage'!$F$21+D155,D155) -> 214389.993 | D156: 215272.4222 | E156: 882.4292113
B157: 155 | C157: =IF(B157<='Income Advantage'!Years*12,'Income Advantage'!$F$21+D156,D156) -> 216272.4222 | D157: 217162.5995 | E157: 890.1772899
B158: 156 | C158: =IF(B158<='Income Advantage'!Years*12,'Income Advantage'!$F$21+D157,D157) -> 218162.5995 | D158: 219060.5568 | E158: 897.9572596
B159: 157 | C159: =IF(B159<='Income Advantage'!Years*12,'Income Advantage'!$F$21+D158,D158) -> 220060.5568 | D159: 220966.326 | E159: 905.7692517
B160: 158 | C160: =IF(B160<='Income Advantage'!Years*12,'Income Advantage'!$F$21+D159,D159) -> 221966.326 | D160: 222879.9394 | E160: 913.6133979
B161: 159 | C161: =IF(B161<='Income Advantage'!Years*12,'Income Advantage'!$F$21+D160,D160) -> 223879.9394 | D161: 224801.4293 | E161: 921.4898307
B162: 160 | C162: =IF(B162<='Income Advantage'!Years*12,'Income Advantage'!$F$21+D161,D161) -> 225801.4293 | D162: 226730.8279 | E162: 929.3986828
B163: 161 | C163: =IF(B163<='Income Advantage'!Years*12,'Income Advantage'!$F$21+D162,D162) -> 227730.8279 | D163: 228668.168 | E163: 937.3400878
B164: 162 | C164: =IF(B164<='Income Advantage'!Years*12,'Income Advantage'!$F$21+D163,D163) -> 229668.168 | D164: 230613.4822 | E164: 945.3141796
B165: 163 | C165: =IF(B165<='Income Advantage'!Years*12,'Income Advantage'!$F$21+D164,D164) -> 231613.4822 | D165: 232566.8033 | E165: 953.3210928
B166: 164 | C166: =IF(B166<='Income Advantage'!Years*12,'Income Advantage'!$F$21+D165,D165) -> 233566.8033 | D166: 234528.1643 | E166: 961.3609624
B167: 165 | C167: =IF(B167<='Income Advantage'!Years*12,'Income Advantage'!$F$21+D166,D166) -> 235528.1643 | D167: 236497.5982 | E167: 969.4339241
B168: 166 | C168: =IF(B168<='Income Advantage'!Years*12,'Income Advantage'!$F$21+D167,D167) -> 237497.5982 | D168: 238475.1383 | E168: 977.5401141
B169: 167 | C169: =IF(B169<='Income Advantage'!Years*12,'Income Advantage'!$F$21+D168,D168) -> 239475.1383 | D169: 240460.818 | E169: 985.6796692
B170: 168 | C170: =IF(B170<='Income Advantage'!Years*12,'Income Advantage'!$F$21+D169,D169) -> 241460.818 | D170: 242454.6707 | E170: 993.8527268
B171: 169 | C171: =IF(B171<='Income Advantage'!Years*12,'Income Advantage'!$F$21+D170,D170) -> 243454.6707 | D171: 244456.7301 | E171: 1002.059425
B172: 170 | C172: =IF(B172<='Income Advantage'!Years*12,'Income Advantage'!$F$21+D171,D171) -> 245456.7301 | D172: 246467.03 | E172: 1010.299901
B173: 171 | C173: =IF(B173<='Income Advantage'!Years*12,'Income Advantage'!$F$21+D172,D172) -> 247467.03 | D173: 248485.6043 | E173: 1018.574296
B174: 172 | C174: =IF(B174<='Income Advantage'!Years*12,'Income Advantage'!$F$21+D173,D173) -> 249485.6043 | D174: 250512.4871 | E174: 1026.882747
B175: 173 | C175: =IF(B175<='Income Advantage'!Years*12,'Income Advantage'!$F$21+D174,D174) -> 251512.4871 | D175: 252547.7125 | E175: 1035.225397
B176: 174 | C176: =IF(B176<='Income Advantage'!Years*12,'Income Advantage'!$F$21+D175,D175) -> 253547.7125 | D176: 254591.3148 | E176: 1043.602384
B177: 175 | C177: =IF(B177<='Income Advantage'!Years*12,'Income Advantage'!$F$21+D176,D176) -> 255591.3148 | D177: 256643.3287 | E177: 1052.013852
B178: 176 | C178: =IF(B178<='Income Advantage'!Years*12,'Income Advantage'!$F$21+D177,D177) -> 257643.3287 | D178: 258703.7886 | E178: 1060.459941
B179: 177 | C179: =IF(B179<='Income Advantage'!Years*12,'Income Advantage'!$F$21+D178,D178) -> 259703.7886 | D179: 260772.7294 | E179: 1068.940794
B180: 178 | C180: =IF(B180<='Income Advantage'!Years*12,'Income Advantage'!$F$21+D179,D179) -> 261772.7294 | D180: 262850.186 | E180: 1077.456554
B181: 179 | C181: =IF(B181<='Income Advantage'!Years*12,'Income Advantage'!$F$21+D180,D180) -> 263850.186 | D181: 264936.1934 | E181: 1086.007366
B182: 180 | C182: =IF(B182<='Income Advantage'!Years*12,'Income Advantage'!$F$21+D181,D181) -> 265936.1934 | D182: 267030.7867 | E182: 1094.593372
